Workbook

Sheet 4 вариант 15.02 (hidden)
A1: IV. Реестр многоквартирных домов, которые подлежат капитальному ремонту в 2018 году, с учетом мер государственной поддержки
A2: № п\п | B2: Адрес МКД | C2: Стоимость капитального ремонта ВСЕГО | D2: Виды работ
D3: Ремонт внутридомовых инженерных систем | J3: Ремонт или замена лифтового оборудования | L3: Ремонт крыши | N3: Ремонт подвальных помещений | P3: Ремонт фасада | R3: Ремонт фундамента | T3: Ремонт подъездов | V3: Утепление фасадов | X3: Установка коллектив-ных (общедо-мовых) ПУ и УУ | Y3: Проект-ные работы | Z3: Работы по предпроектной подготовке
D4: Всего работ по инженерным системам | E4: в том числе
E5: Ремонт сетей электроснабжения | F5: Ремонт сетей теплоснабжения | G5: Ремонт сетей холодного водоснабжения | H5: Ремонт сетей горячего водоснабжения | I5: Ремонт систем водоотведения
C6: руб. | D6: руб. | E6: руб. | F6: руб. | G6: руб. | H6: руб. | I6: руб. | J6: ед. | K6: руб. | L6: кв.м. | M6: руб. | N6: кв.м. | O6: руб. | P6: кв.м. | Q6: руб. | R6: куб.м. | S6: руб. | T6: куб.м. | U6: руб. | V6: кв.м. | W6: руб. | X6: руб. | Y6: руб. | Z6: руб.
A7: 1 | B7: 2 | C7: 3 | D7: 4 | E7: 5 | F7: 6 | G7: 7 | H7: 8 | I7: 9 | J7: 10 | K7: 11 | L7: 12 | M7: 13 | N7: 14 | O7: 15 | P7: 16 | Q7: 17 | R7: 18 | S7: 19 | T7: 20 | U7: 21 | V7: 22 | W7: 23 | X7: 24 | Y7: 25 | Z7: 24
A8: Объекты культурного наследия по г. Выборгу
A9: Муниципальное образование "Город Выборг"
A10: 1 | B10: г. Выборг, просп. Ленина, д. 6 | C10: =M10+Q10 -> 49775695.93 | D10: =E10+F10+G10+H10+I10 -> 0 | L10: 998 | M10: 10968656.84 | P10: 3425 | Q10: 38807039.09
A11: =A10+1 -> 2 | B11: г. Выборг, ул. Железнодорожная, д. 2 | C11: =M11+Q11 -> 71246479.39 | D11: 0 | L11: 2373 | M11: 27524999 | P11: 5336 | Q11: 43721480.39
A12: =A11+1 -> 3 | B12: г. Выборг, ул. Железнодорожная, д. 4 | C12: 32678707.01 | D12: 0 | L12: 872 | M12: 11984761.14 | P12: 2144 | Q12: 20693945.87
A13: 4 | B13: г. Выборг, ул. Крепостная, д. 37 | C13: 35893316.08 | D13: 0 | P13: 3816 | Q13: 35893316.08
A14: 5 | B14: г. Выборг, просп. Ленина, д. 20 | C14: 41972672.83 | D14: 0 | L14: 1343 | M14: 15061442.03 | P14: 3979 | Q14: 26911230.8
A15: 6 | B15: г. Выборг, просп. Ленина, д. 18 | C15: 59578132.51 | D15: 0 | L15: 2045 | M15: 24228789.09 | P15: 6152 | Q15: 35349343.42
A16: 7 | B16: г. Выборг, просп. Суворова, д. 25 | C16: 45928527.66 | D16: 0 | L16: 844 | M16: 10966897.22 | P16: 2501 | Q16: 34961630.44
A17: 8 | B17: г. Выборг, ул. Северная, д. 8 | C17: 51170285.81 | D17: 0 | P17: 6460 | Q17: 51170285.81
A18: 9 | B18: г. Выборг, ул. Северная, д. 10 | C18: 60495179.12 | D18: 0 | P18: 4160 | Q18: 60495179.12
A19: 10 | B19: г. Выборг, Ленинградский пр., д. 14 | C19: 26008913.35 | D19: 0 | L19: 540 | M19: 7099248.06 | P19: 2623 | Q19: 18909665.29
A20: 11 | B20: г. Выборг, Ленинградский пр., д. 16 | C20: 26073352.2 | D20: 0 | L20: 760 | M20: 8877863.95 | P20: 1116 | Q20: 17195488.25
A21: 12 | B21: г. Выборг, Ленинградский пр., д. 31 | C21: 64195351.77 | D21: 0 | L21: 1598 | M21: 15544550 | P21: 5534 | Q21: 48650801.77
A22: 13 | B22: г. Выборг, Ленинградское ш., д. 1 | C22: 96318597.45 | D22: 0 | L22: 2280 | M22: 22581195.35 | P22: 6423 | Q22: 73737402.1
A23: Итого по муниципальному образованию | C23: =SUM(C10:C22) -> 661335211.1 | D23: =SUM(D10:D22) -> 0 | E23: 0 | F23: 0 | G23: 0 | H23: 0 | I23: 0 | J23: 0 | K23: 0 | L23: 13653 | M23: =SUM(M10:M22) -> 154838402.7 | N23: 0 | O23: 0 | P23: 53669 | Q23: 506496808.4 | R23: 0 | S23: 0 | T23: 0 | U23: 0 | V23: 0 | W23: 0 | X23: 0 | Y23: 0
A24: ИТОГО по Ленинградской области | C24: =C23 -> 661335211.1 | D24: =D23 -> 0 | E24: 0 | F24: 0 | G24: 0 | H24: 0 | I24: 0 | J24: 0 | K24: 0 | L24: 13653 | M24: 154838402.7 | N24: 0 | O24: 0 | P24: 53669 | Q24: 506496808.4 | R24: 0 | S24: 0 | T24: 0 | U24: 0 | V24: 0 | W24: 0 | X24: 0 | Y24: 0
A25: Осуществление строительного контроля | C25: =C24*0.0214 -> 14152573.52
A26: Итого по Ленинградской области со строительным контролем | C26: =C24+C25 -> 675487784.6
Z42: =SUM(Z24:Z41) -> 0
Z47: =SUM(Z44:Z46) -> 0
Z48: =Z42+#REF!+Z47+#REF! -> 
Z100: =SUM(Z87:Z99) -> 0
Z123: =SUM(Z105:Z122) -> 0
Z134: =SUM(Z128:Z133) -> 0
Z142: =SUM(Z136:Z141) -> 0
Z148: =SUM(Z144:Z146) -> 0
Z149: =Z100+Z123+Z134+Z148+Z142+Z126 -> 0
Z156: =SUM(Z152:Z155) -> 0
Z220: =SUM(Z161:Z219) -> 0
Z227: =SUM(Z226) -> 0
Z234: =Z156+Z220+Z227 -> 0
Z249: =SUM(Z237:Z248) -> 0
Z254: =SUM(Z251:Z253) -> 0
Z255: =Z249+Z254 -> 0
Z285: =SUM(Z258:Z284) -> 0
Z290: =SUM(Z287:Z289) -> 0
Z294: =SUM(Z292:Z293) -> 0
Z295: =Z285+Z294+Z290 -> 0
Z322: =SUM(Z298:Z321) -> 0
Z339: =SUM(Z324:Z338) -> 0
Z346: =SUM(Z341:Z345) -> 0
Z349: =SUM(Z348:Z348) -> 0
Z357: =SUM(Z351:Z356) -> 0
Z365: =SUM(Z359:Z364) -> 0
Z366: =E366+F366+G366+H366+I366+K366+M366+O366+Q366+S366+U366+V366+W366+X366 -> 0
Z367: =E367+F367+G367+H367+I367+K367+M367+O367+Q367+S367+U367+V367+W367+X367 -> 0
Z368: =E368+F368+G368+H368+I368+K368+M368+O368+Q368+S368+U368+V368+W368+X368 -> 0
Z369: =E369+F369+G369+H369+I369+K369+M369+O369+Q369+S369+U369+V369+W369+X369 -> 0
Z370: =E370+F370+G370+H370+I370+K370+M370+O370+Q370+S370+U370+V370+W370+X370 -> 0
Z396: =SUM(Z372:Z395) -> 0
Z397: =SUM(Z396+Z365+Z357+Z349+Z346+Z339+Z322) -> 0
Z433: =SUM(Z400:Z432) -> 0
Z434: =Z433 -> 0
Z443: =SUM(Z437:Z440) -> 0
Z446: =SUM(Z445:Z445) -> 0
Z451: =SUM(Z448:Z450) -> 0
Z457: =SUM(Z453:Z456) -> 0
Z463: =SUM(Z459:Z462) -> 0
Z467: =SUM(Z465:Z466) -> 0
Z473: =SUM(Z469:Z472) -> 0
Z474: =Z451+Z443+Z446+Z473+Z467+Z457+Z463 -> 0
Z479: =SUM(Z477:Z478) -> 0
Z502: =SUM(Z493:Z501) -> 0
Z506: =SUM(Z504:Z505) -> 0
Z509: =SUM(Z508:Z508) -> 0
Z518: =SUM(Z511:Z517) -> 0
Z526: =SUM(Z520:Z525) -> 0
Z529: =SUM(Z528:Z528) -> 0
Z532: =SUM(Z531) -> 0
Z539: =Z479+Z502+Z506+Z509+Z518+Z526+Z529+Z532+Z538 -> 0
Z550: =SUM(Z542:Z549) -> 0
Z551: =Z550 -> 0
Z559: =SUM(Z554:Z558) -> 0
Z565: =SUM(Z561:Z564) -> 0
Z570: =SUM(Z567:Z569) -> 0
Z576: =SUM(Z572:Z575) -> 0
Z580: =SUM(Z578:Z579) -> 0
Z588: =Z586+Z587 -> 0
Z589: =Z559+Z565+Z570+Z576+Z580 -> 0
Z593: =SUM(Z592:Z592) -> 0
Z596: =SUM(Z595) -> 0
Z634: =SUM(Z598:Z633) -> 0
Z635: =Z634+Z596+Z593 -> 0
Z756: =SUM(Z637:Z755) -> 0
Z868: =SUM(Z764:Z867) -> 0
Z888: =SUM(Z870:Z887) -> 0
Z889: =Z868+Z888 -> 0
Z893: =SUM(Z892:Z892) -> 0
Z901: =SUM(Z895:Z900) -> 0
Z904: =SUM(Z903:Z903) -> 0
Z924: =SUM(Z906:Z923) -> 0
Z927: =SUM(Z926:Z926) -> 0
Z930: =SUM(Z929) -> 0
Z931: =Z901+Z904+Z927+Z924+Z893+Z930 -> 0
Y933: =#REF!-#REF! -> 
Y934: =#REF!-Y933 -> 
Y936: 80325165.22
Y937: =Y933-Y936 -> 

Sheet Итого Раздел I
M1: УТВЕРЖДЕН
M2: постановлением Правительства
M3: Ленинградской области
M4: от 23 июля 2019 года N 345
M5: (в редакции постановления
M6: Правительства Ленинградской области
M7: от 29 декабря 2020 года N 887)
M8: (приложение 2)
A10: Краткосрочный план реализации в 2020-2022 годах Региональной программы капитального ремонта общего имущества в многоквартирных домах, расположенных на территории Ленинградской области
A11: Раздел I. Перечень многоквартирных домов, в которых будет проводиться капитальный ремонт лифтового оборудования в 2020-2022 годах, за счет средств собственников, формирующих фонд капитального ремонта на счетах регионального оператора
A12: № п\п | B12: Адрес МКД | C12: Год | E12: Материал стен | F12: Количество этажей | G12: Количество лифтов | H12: Количество подъездов | I12: общая площадь МКД, всего | J12: Площадь помещений МКД: | L12: Количество жителей, зарегистрированных в МКД | M12: Стоимость капитального ремонта за счет средств собственников помещений в МКД | N12: Плановая дата завершения работ | O12: способ формирования фонда капитального ремонта
C13: ввода в эксплуатацию | D13: завершение последнего капитального ремонта | J13: всего: | K13: в том числе жилых помещений, находящихся в собственности граждан
I15: кв.м | J15: кв.м | K15: кв.м | L15: чел.
A16: 1 | B16: 2 | C16: 3 | D16: 4 | E16: 5 | F16: 6 | G16: 7 | H16: 8 | I16: 9 | J16: 10 | K16: 11 | L16: 12 | M16: 13 | N16: 14 | O16: 15 | P16: 20 | Q16: 21 | R16: 22 | S16: 23 | T16: 24 | U16: 25
A17: Волховский муниципальный район
A18: Муниципальное образование Город Волхов
A19: 1 | B19: Г. Волхов, просп. Волховский, д. 57 | C19: 1994 | E19: кирпич | F19: 9 | G19: 1 | H19: 1 | I19: 3238.7 | J19: 2407 | K19: 2047 | L19: 111 | M19: =SUMIF('2020 Раздел 2'!B:B,B19,'2020 Раздел 2'!C:C)+SUMIF('2021 Раздел 3'!B:B,B19,'2021 Раздел 3'!C:C)+SUMIF('2022 Раздел 4'!B:B,B19,'2022 Раздел 4'!C:C) -> 2735709.46 | N19: 2022-12-30 | O19: РО
A20: Итого по муниципальному образованию | C20: х | D20: х | E20: х | F20: х | G20: =SUM(G19) -> 1 | H20: х | I20: =SUM(I19) -> 3238.7 | J20: =SUM(J19) -> 2407 | K20: 2047 | L20: 111 | M20: =M19 -> 2735709.46 | N20: х | O20: х
A21: Итого по Волховскому муниципальному району | C21: х | D21: х | E21: х | F21: х | G21: =SUM(G20) -> 1 | H21: х | I21: =SUM(I20) -> 3238.7 | J21: 2407 | K21: 2047 | L21: 111 | M21: 2735709.46 | N21: х | O21: х | P21: =M21-'2021 Раздел 3'!C9-'2022 Раздел 4'!C10 -> 0
A22: Всеволожский муниципальный район
A23: Муниципальное образование Город Всеволожск
A24: =A19+1 -> 2 | B24: Г. Всеволожск, ул. Александровская, д. 81, корп. 3 | C24: 1996 | F24: 8 | G24: 2 | H24: 2 | I24: 4215.1 | J24: 4215.1 | K24: 2782 | L24: 170 | M24: =SUMIF('2020 Раздел 2'!B:B,B24,'2020 Раздел 2'!C:C)+SUMIF('2021 Раздел 3'!B:B,B24,'2021 Раздел 3'!C:C)+SUMIF('2022 Раздел 4'!B:B,B24,'2022 Раздел 4'!C:C) -> 5276630.92 | N24: 2022-12-30 | O24: РО
A25: =A24+1 -> 3 | B25: Г. Всеволожск, ул. Балашова, д. 8/3 | C25: 1995 | F25: 9 | G25: 2 | H25: 2 | I25: 4768.2 | J25: 4768.2 | K25: 2407 | L25: 154 | M25: =SUMIF('2020 Раздел 2'!B:B,B25,'2020 Раздел 2'!C:C)+SUMIF('2021 Раздел 3'!B:B,B25,'2021 Раздел 3'!C:C)+SUMIF('2022 Раздел 4'!B:B,B25,'2022 Раздел 4'!C:C) -> 5276630.92 | N25: 2022-12-30 | O25: РО
A26: 4 | B26: Г. Всеволожск, ул. Василеозерская, д. 5 | C26: 1995 | F26: 10 | G26: 2 | H26: 2 | I26: 5400.9 | J26: 5400.9 | K26: 2392 | L26: 141 | M26: =SUMIF('2020 Раздел 2'!B:B,B26,'2020 Раздел 2'!C:C)+SUMIF('2021 Раздел 3'!B:B,B26,'2021 Раздел 3'!C:C)+SUMIF('2022 Раздел 4'!B:B,B26,'2022 Раздел 4'!C:C) -> 5276630.92 | N26: 2022-12-30 | O26: РО
A27: 5 | B27: Г. Всеволожск, ул. Василеозерская, д. 7 | C27: 1996 | F27: 10 | G27: 2 | H27: 2 | I27: 5786.9 | J27: 5786.9 | K27: 3645 | L27: 205 | M27: =SUMIF('2020 Раздел 2'!B:B,B27,'2020 Раздел 2'!C:C)+SUMIF('2021 Раздел 3'!B:B,B27,'2021 Раздел 3'!C:C)+SUMIF('2022 Раздел 4'!B:B,B27,'2022 Раздел 4'!C:C) -> 5471418.92 | N27: 2022-12-30 | O27: РО
A28: 6 | B28: Г. Всеволожск, ул. Вокка, д. 3 | C28: 1991 | F28: 9 | G28: 2 | H28: 2 | I28: 4954.1 | J28: 4954.1 | K28: 3450 | L28: 190.5 | M28: =SUMIF('2020 Раздел 2'!B:B,B28,'2020 Раздел 2'!C:C)+SUMIF('2021 Раздел 3'!B:B,B28,'2021 Раздел 3'!C:C)+SUMIF('2022 Раздел 4'!B:B,B28,'2022 Раздел 4'!C:C) -> 5471418.92 | N28: 2022-12-30 | O28: РО
A29: 7 | B29: Г. Всеволожск, ул. Ленинградская, д. 24/84 | C29: 1994 | F29: 10 | G29: 5 | H29: 5 | I29: 13448.5 | J29: 13448.5 | K29: 3707.4 | L29: 199.7 | M29: =SUMIF('2020 Раздел 2'!B:B,B29,'2020 Раздел 2'!C:C)+SUMIF('2021 Раздел 3'!B:B,B29,'2021 Раздел 3'!C:C)+SUMIF('2022 Раздел 4'!B:B,B29,'2022 Раздел 4'!C:C) -> 12601362 | N29: 2022-12-30 | O29: РО
A30: 8 | B30: Г. Всеволожск, ул. Ленинградская, д. 30, корп. 1 | C30: 1993 | F30: 9 | G30: 1 | H30: 3 | I30: 6885.1 | J30: 6885.1 | K30: 3964.8 | L30: 208.9 | M30: =SUMIF('2020 Раздел 2'!B:B,B30,'2020 Раздел 2'!C:C)+SUMIF('2021 Раздел 3'!B:B,B30,'2021 Раздел 3'!C:C)+SUMIF('2022 Раздел 4'!B:B,B30,'2022 Раздел 4'!C:C) -> 2735709.46 | N30: 2022-12-30 | O30: РО
A31: Итого по муниципальному образованию | C31: x | D31: x | E31: x | F31: x | G31: =SUM(G24:G30) -> 16 | H31: x | I31: =SUM(I24:I30) -> 45458.8 | J31: 45458.8 | K31: 22348.2 | L31: 1269.1 | M31: =SUM(M24:M30) -> 42109802.06 | N31: x | O31: x | P31: =M31-'2020 Раздел 2'!C11-'2021 Раздел 3'!C19-'2022 Раздел 4'!C16 -> 0 | Q31: =#REF!-'2020 Раздел 2'!C11-'2021 Раздел 3'!C19-'2022 Раздел 4'!C16 -> 
A32: Муниципальное образование Муринское городское поселение
A33: =A30+1 -> 9 | B33: г. Мурино, ул. Оборонная, д. 12 | C33: 1992 | E33: кирпич | F33: 9 | G33: 2 | H33: 2 | I33: 5334 | J33: 4507 | K33: 2782 | L33: 170 | M33: =SUMIF('2020 Раздел 2'!B:B,B33,'2020 Раздел 2'!C:C)+SUMIF('2021 Раздел 3'!B:B,B33,'2021 Раздел 3'!C:C)+SUMIF('2022 Раздел 4'!B:B,B33,'2022 Раздел 4'!C:C) -> 5276630.92 | N33: 2022-12-30 | O33: РО
A34: =A33+1 -> 10 | B34: г. Мурино, ул. Оборонная, д. 22 | C34: 1993 | E34: Ж/б панели | F34: 10 | G34: 1 | H34: 2 | I34: 5436 | J34: 4484 | K34: 2392 | L34: 141 | M34: =SUMIF('2020 Раздел 2'!B:B,B34,'2020 Раздел 2'!C:C)+SUMIF('2021 Раздел 3'!B:B,B34,'2021 Раздел 3'!C:C)+SUMIF('2022 Раздел 4'!B:B,B34,'2022 Раздел 4'!C:C) -> 2638315.46 | N34: 2022-12-30 | O34: РО | Q34: =#REF!-'2020 Раздел 2'!C16-'2021 Раздел 3'!C24 -> 
A35: =A34+1 -> 11 | B35: г. Мурино, ул. Оборонная, д. 24 | C35: 1994 | E35: Ж/б панели | F35: 10 | G35: 3 | H35: 3 | I35: 8215 | J35: 6784 | K35: 3645 | L35: 205 | M35: =SUMIF('2020 Раздел 2'!B:B,B35,'2020 Раздел 2'!C:C)+SUMIF('2021 Раздел 3'!B:B,B35,'2021 Раздел 3'!C:C)+SUMIF('2022 Раздел 4'!B:B,B35,'2022 Раздел 4'!C:C) -> 7914946.38 | N35: 2022-12-30 | O35: РО
A36: Итого по муниципальному образованию | C36: x | D36: x | E36: x | F36: x | G36: =SUM(G33:G35) -> 6 | H36: x | I36: 18985 | J36: 15775 | K36: 8819 | L36: 516 | M36: =SUM(M33:M35) -> 15829892.76 | N36: x | O36: x | P36: =M36-'2020 Раздел 2'!C16-'2021 Раздел 3'!C24 -> 0
A37: Муниципальное образование Свердловское городское поселение
A38: =A35+1 -> 12 | B38: Пос. им. Свердлова, микрорайон 1, д. 8 | C38: 1994 | E38: Ж/б панели | F38: 9 | G38: 4 | H38: 4 | I38: 8231.7 | J38: 8202.3 | K38: 8132.9 | L38: 273 | M38: =SUMIF('2020 Раздел 2'!B:B,B38,'2020 Раздел 2'!C:C)+SUMIF('2021 Раздел 3'!B:B,B38,'2021 Раздел 3'!C:C)+SUMIF('2022 Раздел 4'!B:B,B38,'2022 Раздел 4'!C:C) -> 10553261.84 | N38: 2022-12-30 | O38: РО
A39: Итого по муниципальному образованию | C39: x | D39: x | E39: x | F39: x | G39: =G38 -> 4 | H39: =SUM(H38) -> 4 | I39: =SUM(I38) -> 8231.7 | J39: =SUM(J38) -> 8202.3 | K39: =SUM(K38) -> 8132.9 | L39: =SUM(L38) -> 273 | M39: =M38 -> 10553261.84 | N39: x | O39: x
A40: Муниципальное образование Сертолово
A41: =A38+1 -> 13 | B41: г.Сертолово, микрорайон Сертолово-1, ул.Ветеранов,д.11,корп.1 | C41: 1998 | E41: панельный | F41: 9 | G41: 3 | H41: 3 | I41: 6816.5 | J41: 6088.2 | K41: 5657.15 | L41: 216 | M41: =SUMIF('2020 Раздел 2'!B:B,B41,'2020 Раздел 2'!C:C)+SUMIF('2021 Раздел 3'!B:B,B41,'2021 Раздел 3'!C:C)+SUMIF('2022 Раздел 4'!B:B,B41,'2022 Раздел 4'!C:C) -> 7907242.86 | N41: 2022-12-30 | O41: РО
A42: =A41+1 -> 14 | B42: г.Сертолово, микрорайон Сертолово-1, ул. Ветеранов, д. № 11 корп. 2 | C42: 1994 | E42: Ж/б панели | F42: 10 | G42: 3 | H42: 3 | I42: 7576.8 | J42: 7560.2 | K42: 6724.1 | L42: 312 | M42: =SUMIF('2020 Раздел 2'!B:B,B42,'2020 Раздел 2'!C:C)+SUMIF('2021 Раздел 3'!B:B,B42,'2021 Раздел 3'!C:C)+SUMIF('2022 Раздел 4'!B:B,B42,'2022 Раздел 4'!C:C) -> 7907242.86 | N42: 2022-12-30 | O42: РО
A43: =A42+1 -> 15 | B43: Г. Сертолово, микрорайон Сертолово-1, ул. Молодежная, д. 8, корп. 2 | C43: 1993 | E43: панельный | F43: 10 | G43: 3 | H43: 3 | I43: 7982.3 | J43: 7092.3 | K43: 7092.3 | L43: 286 | M43: =SUMIF('2020 Раздел 2'!B:B,B43,'2020 Раздел 2'!C:C)+SUMIF('2021 Раздел 3'!B:B,B43,'2021 Раздел 3'!C:C)+SUMIF('2022 Раздел 4'!B:B,B43,'2022 Раздел 4'!C:C) -> 8165389.38 | N43: 2022-12-30 | O43: РО
A44: 16 | B44: г.Сертолово, микрорайон Сертолово-1, ул.Центральная, д. 3 | C44: 1996 | E44: пан | F44: 10 | G44: 3 | H44: 3 | I44: 8340 | J44: 7249.8 | K44: 6747.7 | L44: 347 | M44: =SUMIF('2020 Раздел 2'!B:B,B44,'2020 Раздел 2'!C:C)+SUMIF('2021 Раздел 3'!B:B,B44,'2021 Раздел 3'!C:C)+SUMIF('2022 Раздел 4'!B:B,B44,'2022 Раздел 4'!C:C) -> 8157685.86 | N44: 2022-12-30 | O44: РО
A45: 17 | B45: г.Сертолово, микрорайон Сертолово-1, ул.Центральная, д. 7, корп.2 | C45: 1993 | E45: пан | F45: 10 | G45: 3 | H45: 3 | I45: 7654 | J45: 7326 | K45: 6569.3 | L45: 169 | M45: =SUMIF('2020 Раздел 2'!B:B,B45,'2020 Раздел 2'!C:C)+SUMIF('2021 Раздел 3'!B:B,B45,'2021 Раздел 3'!C:C)+SUMIF('2022 Раздел 4'!B:B,B45,'2022 Раздел 4'!C:C) -> 8157685.86 | N45: 2022-12-30 | O45: РО
A46: 18 | B46: Г. Сертолово, микрорайон Сертолово-1, ул. Центральная, д. 7, корп. 1 | C46: 1993 | E46: панельный | F46: 10 | G46: 3 | H46: 3 | I46: 7654 | J46: 6803.8 | K46: 6803.8 | L46: 296 | M46: =SUMIF('2020 Раздел 2'!B:B,B46,'2020 Раздел 2'!C:C)+SUMIF('2021 Раздел 3'!B:B,B46,'2021 Раздел 3'!C:C)+SUMIF('2022 Раздел 4'!B:B,B46,'2022 Раздел 4'!C:C) -> 8680076.04 | N46: 2022-12-30 | O46: РО
A47: 19 | B47: Г. Сертолово, микрорайон Сертолово-1, ул. Центральная, д. 6, корп. 1 | C47: 1994 | E47: панельный | F47: 10 | G47: 3 | H47: 3 | I47: 7572 | J47: 6727 | K47: 6727 | L47: 339 | M47: =SUMIF('2020 Раздел 2'!B:B,B47,'2020 Раздел 2'!C:C)+SUMIF('2021 Раздел 3'!B:B,B47,'2021 Раздел 3'!C:C)+SUMIF('2022 Раздел 4'!B:B,B47,'2022 Раздел 4'!C:C) -> 8667924.47 | N47: 2022-12-30 | O47: РО
A48: Итого по муниципальному образованию | C48: x | D48: x | E48: x | F48: x | G48: =SUM(G41:G47) -> 21 | H48: x | I48: =SUM(I41:I47) -> 53595.6 | J48: 48847.3 | K48: 46321.35 | L48: 1965 | M48: =SUM(M41:M47) -> 57643247.33 | N48: x | O48: x
A49: Итого по Всеволожскому муниципальному району | C49: x | D49: x | E49: x | F49: x | G49: =G48+G39+G36+G31 -> 47 | H49: х | I49: =I48+I39+I36+I31 -> 126271.1 | J49: 118283.4 | K49: 85621.45 | L49: 4023.1 | M49: 126136204 | N49: x | O49: x | P49: =M49-'2020 Раздел 2'!C25-'2021 Раздел 3'!C34-'2022 Раздел 4'!C20 -> 0 | Q49: =#REF!-'2020 Раздел 2'!C25-'2021 Раздел 3'!C34-'2022 Раздел 4'!C20 -> 
A50: Выборгский район
A51: Муниципальное образование Город Выборг
A52: =A47+1 -> 20 | B52: Г. Выборг, бул. Кутузова, д. 33 | C52: 1940 | E52: кирпич | F52: 6 | G52: 1 | H52: 3 | I52: 2910.22 | J52: 2910.22 | K52: 2630.54 | L52: 80 | M52: =SUMIF('2020 Раздел 2'!B:B,B52,'2020 Раздел 2'!C:C)+SUMIF('2021 Раздел 3'!B:B,B52,'2021 Раздел 3'!C:C)+SUMIF('2022 Раздел 4'!B:B,B52,'2022 Раздел 4'!C:C) -> 2546289.69 | N52: 2022-12-30 | O52: РО
A53: =A52+1 -> 21 | B53: Г. Выборг, просп. Победы, д. 12 | C53: 1996 | E53: Кер.бет. | F53: 9 | G53: 4 | H53: 4 | I53: 7257.77 | J53: 7257.77 | K53: 6766.67 | L53: 297 | M53: =SUMIF('2020 Раздел 2'!B:B,B53,'2020 Раздел 2'!C:C)+SUMIF('2021 Раздел 3'!B:B,B53,'2021 Раздел 3'!C:C)+SUMIF('2022 Раздел 4'!B:B,B53,'2022 Раздел 4'!C:C) -> 10553261.84 | N53: 2022-12-30 | O53: РО
A54: 22 | B54: Г. Выборг, пр. Победы, д. 8 | C54: 1991 | E54: Кер.бет. | F54: 9 | G54: 1 | H54: 1 | I54: 2003.5 | J54: 2003.5 | K54: 2003.5 | L54: 88 | M54: =SUMIF('2020 Раздел 2'!B:B,B54,'2020 Раздел 2'!C:C)+SUMIF('2021 Раздел 3'!B:B,B54,'2021 Раздел 3'!C:C)+SUMIF('2022 Раздел 4'!B:B,B54,'2022 Раздел 4'!C:C) -> 2453855.13 | N54: 2022-12-30 | O54: РО
A55: 23 | B55: Г. Выборг, ул. Гагарина, д. 29 | C55: 1983 | E55: Кер.бет. | F55: 9 | G55: 3 | H55: 3 | I55: 6092.3 | J55: 6092.3 | K55: 5241.8 | L55: 286 | M55: =SUMIF('2020 Раздел 2'!B:B,B55,'2020 Раздел 2'!C:C)+SUMIF('2021 Раздел 3'!B:B,B55,'2021 Раздел 3'!C:C)+SUMIF('2022 Раздел 4'!B:B,B55,'2022 Раздел 4'!C:C) -> 11629909.38 | N55: 2022-12-30 | O55: РО
A56: 24 | B56: Г. Выборг, ул. Гагарина, д. 65 | C56: 1993 | E56: панель | F56: 9 | G56: 1 | H56: 1 | I56: 1989.5 | J56: 1989.5 | K56: 1836.8 | L56: 82 | M56: =SUMIF('2020 Раздел 2'!B:B,B56,'2020 Раздел 2'!C:C)+SUMIF('2021 Раздел 3'!B:B,B56,'2021 Раздел 3'!C:C)+SUMIF('2022 Раздел 4'!B:B,B56,'2022 Раздел 4'!C:C) -> 2453784.56 | N56: 2022-12-30 | O56: РО
A57: 25 | B57: Г. Выборг, ул. Гагарина, д. 69 | C57: 1994 | E57: панель | F57: 9 | G57: 2 | H57: 2 | I57: 4782 | J57: 4782 | K57: 3975.5 | L57: 184 | M57: =SUMIF('2020 Раздел 2'!B:B,B57,'2020 Раздел 2'!C:C)+SUMIF('2021 Раздел 3'!B:B,B57,'2021 Раздел 3'!C:C)+SUMIF('2022 Раздел 4'!B:B,B57,'2022 Раздел 4'!C:C) -> 5601418.92 | N57: 2022-12-30 | O57: РО
A58: 26 | B58: Г. Выборг, ул. Крепостная, д. 39а | C58: 1993 | E58: кирпич | F58: 9 | G58: 1 | H58: 1 | I58: 1886.9 | J58: 1886.9 | K58: 1876 | L58: 42 | M58: =SUMIF('2020 Раздел 2'!B:B,B58,'2020 Раздел 2'!C:C)+SUMIF('2021 Раздел 3'!B:B,B58,'2021 Раздел 3'!C:C)+SUMIF('2022 Раздел 4'!B:B,B58,'2022 Раздел 4'!C:C) -> 3876636.46 | N58: 2022-12-30 | O58: РО
A59: 27 | B59: Г. Выборг, ул. Офицерская, д. 12 | C59: 1993 | E59: Кер.блок | F59: 9 | G59: 1 | H59: 1 | I59: 1561.5 | J59: 1561.5 | K59: 1422.9 | L59: 84 | M59: =SUMIF('2020 Раздел 2'!B:B,B59,'2020 Раздел 2'!C:C)+SUMIF('2021 Раздел 3'!B:B,B59,'2021 Раздел 3'!C:C)+SUMIF('2022 Раздел 4'!B:B,B59,'2022 Раздел 4'!C:C) -> 2499849.44 | N59: 2022-12-30 | O59: РО
A60: 28 | B60: Г. Выборг, ул. Офицерская, д. 14 | C60: 1993 | E60: Кер.блок | F60: 9 | G60: 1 | H60: 1 | I60: 2421.3 | J60: 2421.3 | K60: 2163.8 | L60: 105 | M60: =SUMIF('2020 Раздел 2'!B:B,B60,'2020 Раздел 2'!C:C)+SUMIF('2021 Раздел 3'!B:B,B60,'2021 Раздел 3'!C:C)+SUMIF('2022 Раздел 4'!B:B,B60,'2022 Раздел 4'!C:C) -> 2502256.98 | N60: 2022-12-30 | O60: РО
A61: 29 | B61: Г. Выборг, ул. Приморская, д. 64 | C61: 1989 | E61: Кер.бет. | F61: 9 | G61: 2 | H61: 2 | I61: 4002.8 | J61: 4002.8 | K61: 3526.4 | L61: 173 | M61: =SUMIF('2020 Раздел 2'!B:B,B61,'2020 Раздел 2'!C:C)+SUMIF('2021 Раздел 3'!B:B,B61,'2021 Раздел 3'!C:C)+SUMIF('2022 Раздел 4'!B:B,B61,'2022 Раздел 4'!C:C) -> 4815667.96 | N61: 2022-12-30 | O61: РО
A62: Итого по муниципальному образованию | C62: x | D62: x | E62: x | F62: x | G62: =SUM(G52:G61) -> 17 | H62: x | I62: =SUM(I52:I61) -> 34907.79 | J62: 34907.79 | K62: 31443.91 | L62: 1421 | M62: 48932930.36 | N62: x | O62: x | P62: =M62-'2020 Раздел 2'!C36-'2021 Раздел 3'!C40-'2022 Раздел 4'!C24 -> -1.303851604e-08 | Q62: =#REF!-'2020 Раздел 2'!C36-'2021 Раздел 3'!C48-'2022 Раздел 4'!C29 -> 
A63: Муниципальное образование Полянское сельское поселение
A64: =A61+1 -> 30 | B64: П/ст Приветнинское, ул. Военных строителей, д. 1 | C64: 1985 | E64: кирпич | F64: 9 | G64: 1 | H64: 1 | I64: 2142.57 | J64: =I64 -> 2142.57 | K64: 640.34 | L64: 71 | M64: =SUMIF('2020 Раздел 2'!B:B,B64,'2020 Раздел 2'!C:C)+SUMIF('2021 Раздел 3'!B:B,B64,'2021 Раздел 3'!C:C)+SUMIF('2022 Раздел 4'!B:B,B64,'2022 Раздел 4'!C:C) -> 2635747.62 | N64: 2022-12-30 | O64: РО
A65: =A64+1 -> 31 | B65: П/ст Приветнинское, ул. Военных строителей, д. 7 | C65: 1984 | E65: кирпич | F65: 9 | G65: 1 | H65: 1 | I65: 3956.9 | J65: =I65 -> 3956.9 | K65: 954.8 | L65: 127 | M65: =SUMIF('2020 Раздел 2'!B:B,B65,'2020 Раздел 2'!C:C)+SUMIF('2021 Раздел 3'!B:B,B65,'2021 Раздел 3'!C:C)+SUMIF('2022 Раздел 4'!B:B,B65,'2022 Раздел 4'!C:C) -> 2635747.62 | N65: 2022-12-30 | O65: РО
A66: =A65+1 -> 32 | B66: П/ст Приветнинское, ул. Военных строителей, д. 9 | C66: 1981 | E66: кирпич | F66: 9 | G66: 1 | H66: 1 | I66: 3987.5 | J66: =I66 -> 3987.5 | K66: 1118.85 | L66: 113 | M66: =SUMIF('2020 Раздел 2'!B:B,B66,'2020 Раздел 2'!C:C)+SUMIF('2021 Раздел 3'!B:B,B66,'2021 Раздел 3'!C:C)+SUMIF('2022 Раздел 4'!B:B,B66,'2022 Раздел 4'!C:C) -> 2635747.62 | N66: 2022-12-30 | O66: РО
A67: =A66+1 -> 33 | B67: пос. Каменка, ул. Гвардейская, д. 75 | C67: 1984 | E67: кирпич | F67: 9 | G67: 1 | H67: 1 | I67: 3416.1 | J67: 3416.1 | K67: 104.8 | L67: 93 | M67: =SUMIF('2020 Раздел 2'!B:B,B67,'2020 Раздел 2'!C:C)+SUMIF('2021 Раздел 3'!B:B,B67,'2021 Раздел 3'!C:C)+SUMIF('2022 Раздел 4'!B:B,B67,'2022 Раздел 4'!C:C) -> 2736190.13 | N67: 2022-12-30 | O67: РО
A68: =A67+1 -> 34 | B68: пос. Каменка, ул. Гвардейская, д. 77 | C68: 1984 | E68: кирпич | F68: 9 | G68: 1 | H68: 1 | I68: 3034.7 | J68: 3034.7 | K68: 89.5 | L68: 79 | M68: =SUMIF('2020 Раздел 2'!B:B,B68,'2020 Раздел 2'!C:C)+SUMIF('2021 Раздел 3'!B:B,B68,'2021 Раздел 3'!C:C)+SUMIF('2022 Раздел 4'!B:B,B68,'2022 Раздел 4'!C:C) -> 2736190.13 | N68: 2022-12-30 | O68: РО
A69: Итого по муниципальному образованию | C69: x | D69: x | E69: x | F69: x | G69: =SUM(G64:G68) -> 5 | H69: x | I69: =SUM(I64:I68) -> 16537.77 | J69: =SUM(J64:J68) -> 16537.77 | K69: 2908.29 | L69: 483 | M69: 13379623.12
A70: Муниципальное образование Светогорское городское поселение
A71: =A68+1 -> 35 | B71: Г. Светогорск, ул. Красноармейская, д. 26 | C71: 1984 | E71: панель | F71: 9 | G71: 3 | H71: 3 | I71: 6751.6 | J71: 6751.6 | K71: 4709.1 | L71: 217 | M71: =SUMIF('2020 Раздел 2'!B:B,B71,'2020 Раздел 2'!C:C)+SUMIF('2021 Раздел 3'!B:B,B71,'2021 Раздел 3'!C:C)+SUMIF('2022 Раздел 4'!B:B,B71,'2022 Раздел 4'!C:C) -> 8324810.25 | N71: 2022-12-30 | O71: РО
A72: =A71+1 -> 36 | B72: Г. Светогорск, ул. Красноармейская, д. 32 | C72: 1983 | E72: панель | F72: 9 | G72: 5 | H72: 6 | I72: 9392.4 | J72: 9392.4 | K72: 9392.4 | L72: 411 | M72: =SUMIF('2020 Раздел 2'!B:B,B72,'2020 Раздел 2'!C:C)+SUMIF('2021 Раздел 3'!B:B,B72,'2021 Раздел 3'!C:C)+SUMIF('2022 Раздел 4'!B:B,B72,'2022 Раздел 4'!C:C) -> 9594930.01 | N72: 2022-12-30 | O72: РО
A73: =A72+1 -> 37 | B73: Г. Светогорск, ул. Красноармейская, д. 8 | C73: 1984 | E73: панель | F73: 9 | G73: 3 | H73: 3 | I73: 4683.9 | J73: 4683.9 | K73: 4650.5 | L73: 171 | M73: =SUMIF('2020 Раздел 2'!B:B,B73,'2020 Раздел 2'!C:C)+SUMIF('2021 Раздел 3'!B:B,B73,'2021 Раздел 3'!C:C)+SUMIF('2022 Раздел 4'!B:B,B73,'2022 Раздел 4'!C:C) -> 7759701.1 | N73: 2022-12-30 | O73: РО
A74: Итого по муниципальному образованию | C74: x | D74: x | E74: x | F74: x | G74: =SUM(G71:G73) -> 11 | H74: x | I74: =SUM(I71:I73) -> 20827.9 | J74: 20827.9 | K74: 18752 | L74: 799 | M74: =SUM(M71:M73) -> 25679441.36 | N74: x | O74: x | Q74: =#REF!-'2020 Раздел 2'!C42 -> 
A75: Муниципальное образование Советское городское поселение
A76: =A73+1 -> 38 | B76: Г.п. Советский, ул. Садовая, д. 46 | C76: 1986 | E76: блочный | F76: 9 | G76: 1 | H76: 1 | I76: 4024.4 | J76: 4024.4 | K76: 3621.96 | L76: 122 | M76: =SUMIF('2020 Раздел 2'!B:B,B76,'2020 Раздел 2'!C:C)+SUMIF('2021 Раздел 3'!B:B,B76,'2021 Раздел 3'!C:C)+SUMIF('2022 Раздел 4'!B:B,B76,'2022 Раздел 4'!C:C) -> 2381097.22 | N76: 2022-12-30 | O76: РО
A77: Итого по муниципальному образованию | C77: x | D77: x | E77: x | F77: x | G77: 1 | H77: x | I77: =SUM(I76) -> 4024.4 | J77: =SUM(J76) -> 4024.4 | K77: =SUM(K76) -> 3621.96 | L77: =SUM(L76) -> 122 | M77: =M76 -> 2381097.22 | N77: x | O77: x
A78: Итого по Выборгскому району | C78: x | D78: x | E78: x | F78: x | G78: =G77+G74+G69+G62 -> 34 | H78: x | I78: =I77+I74+I69+I62 -> 76297.86 | J78: =J77+J74+J69+J62 -> 76297.86 | K78: 56726.16 | L78: 2825 | M78: 90373092.06 | N78: x | O78: x | P78: =M78-'2020 Раздел 2'!C45-'2021 Раздел 3'!C48-'2022 Раздел 4'!C29 -> 0 | Q78: =#REF!-'2020 Раздел 2'!C45-'2021 Раздел 3'!C48-'2022 Раздел 4'!C29 ->  | V78: =M78-'2020 Раздел 2'!C45-'2021 Раздел 3'!C48-'2022 Раздел 4'!C29 -> 0
A79: Гатчинский муниципальный район
A80: Муниципальное образование Город Гатчина
A81: =A76+1 -> 39 | B81: Г. Гатчина, просп. 25 Октября, д. 46 | C81: 1989 | E81: кирпич | F81: 6 | G81: 6 | H81: 6 | I81: 8643 | J81: 5163 | K81: 2879 | L81: 223 | M81: =SUMIF('2020 Раздел 2'!B:B,B81,'2020 Раздел 2'!C:C)+SUMIF('2021 Раздел 3'!B:B,B81,'2021 Раздел 3'!C:C)+SUMIF('2022 Раздел 4'!B:B,B81,'2022 Раздел 4'!C:C) -> 14776244.76 | N81: 2022-12-29 | O81: РО
A82: =A81+1 -> 40 | B82: Г. Гатчина, просп. 25 Октября, д. 50 | C82: 1990 | E82: кирпич | F82: 6 | G82: 6 | H82: 6 | I82: 8643 | J82: 5163 | K82: 2879 | L82: 223 | M82: =SUMIF('2020 Раздел 2'!B:B,B82,'2020 Раздел 2'!C:C)+SUMIF('2021 Раздел 3'!B:B,B82,'2021 Раздел 3'!C:C)+SUMIF('2022 Раздел 4'!B:B,B82,'2022 Раздел 4'!C:C) -> 13281684.88 | N82: 2022-12-30 | O82: РО
A83: =A82+1 -> 41 | B83: Г. Гатчина, просп. 25 Октября, д. 59 | C83: 1993 | E83: кирпич | F83: 6 | G83: 3 | H83: 3 | I83: 15895.7 | J83: 7164.3 | K83: 6932.7 | L83: 239 | M83: =SUMIF('2020 Раздел 2'!B:B,B83,'2020 Раздел 2'!C:C)+SUMIF('2021 Раздел 3'!B:B,B83,'2021 Раздел 3'!C:C)+SUMIF('2022 Раздел 4'!B:B,B83,'2022 Раздел 4'!C:C) -> 8207128.38 | N83: 2022-12-30 | O83: РО
A84: 42 | B84: Г. Гатчина, просп. 25 Октября, д. 63 | C84: 1988 | E84: кирпич | F84: 6 | G84: 3 | H84: 3 | I84: 15055 | J84: 5826 | K84: 5522.3 | L84: 221 | M84: =SUMIF('2020 Раздел 2'!B:B,B84,'2020 Раздел 2'!C:C)+SUMIF('2021 Раздел 3'!B:B,B84,'2021 Раздел 3'!C:C)+SUMIF('2022 Раздел 4'!B:B,B84,'2022 Раздел 4'!C:C) -> 6649644.94 | N84: 2022-12-30 | O84: РО
A85: 43 | B85: Г. Гатчина, ул. Авиатриссы Зверевой, д. 11 | C85: 1988 | E85: панельный | F85: 9 | G85: 2 | H85: 2 | I85: 5884.4 | J85: 3923 | K85: 3488.1 | L85: 200 | M85: =SUMIF('2020 Раздел 2'!B:B,B85,'2020 Раздел 2'!C:C)+SUMIF('2021 Раздел 3'!B:B,B85,'2021 Раздел 3'!C:C)+SUMIF('2022 Раздел 4'!B:B,B85,'2022 Раздел 4'!C:C) -> 4736471.6 | N85: 2022-12-30 | O85: РО
A86: 44 | B86: Г. Гатчина, ул. Красных Военлётов, д. 9 | C86: 1990 | E86: панельный | F86: 9 | G86: 4 | H86: 4 | I86: 12490.5 | J86: 8071.5 | K86: 7355.2 | L86: 387 | M86: =SUMIF('2020 Раздел 2'!B:B,B86,'2020 Раздел 2'!C:C)+SUMIF('2021 Раздел 3'!B:B,B86,'2021 Раздел 3'!C:C)+SUMIF('2022 Раздел 4'!B:B,B86,'2022 Раздел 4'!C:C) -> 10532095.24 | N86: 2022-12-30 | O86: РО
A87: 45 | B87: Г. Гатчина, ул. Рощинская, д. 11, кор. 1 | C87: 1993 | E87: кирпич | F87: 8 | G87: 1 | H87: 1 | I87: 3301.1 | J87: 1510.1 | K87: 1328.7 | L87: 92 | M87: =SUMIF('2020 Раздел 2'!B:B,B87,'2020 Раздел 2'!C:C)+SUMIF('2021 Раздел 3'!B:B,B87,'2021 Раздел 3'!C:C)+SUMIF('2022 Раздел 4'!B:B,B87,'2022 Раздел 4'!C:C) -> 2735709.46 | N87: 2022-12-30 | O87: РО
A88: 46 | B88: Г. Гатчина, ул. Рощинская, д. 13, кор. 1 | C88: 1990 | E88: кирпич | F88: 7 | G88: 1 | H88: 1 | I88: 2965 | J88: 1535.7 | K88: 1501.4 | L88: 80 | M88: =SUMIF('2020 Раздел 2'!B:B,B88,'2020 Раздел 2'!C:C)+SUMIF('2021 Раздел 3'!B:B,B88,'2021 Раздел 3'!C:C)+SUMIF('2022 Раздел 4'!B:B,B88,'2022 Раздел 4'!C:C) -> 2406821.9 | N88: 2022-12-30 | O88: РО
A89: 47 | B89: Г. Гатчина, ул. Рощинская, д. 13А | C89: 1991 | E89: кирпич | F89: 5 | G89: 2 | H89: 2 | I89: 3831.4 | J89: 1743.9 | K89: 2237.8 | L89: 95 | M89: =SUMIF('2020 Раздел 2'!B:B,B89,'2020 Раздел 2'!C:C)+SUMIF('2021 Раздел 3'!B:B,B89,'2021 Раздел 3'!C:C)+SUMIF('2022 Раздел 4'!B:B,B89,'2022 Раздел 4'!C:C) -> 5471418.92 | N89: 2022-12-30 | O89: РО
A90: 48 | B90: Г. Гатчина, ул. Рощинская, д. 19 | C90: 1994 | E90: кирпич | F90: 7 | G90: 4 | H90: 5 | I90: 12030.6 | J90: 11199.2 | K90: 8436.8 | L90: 298 | M90: =SUMIF('2020 Раздел 2'!B:B,B90,'2020 Раздел 2'!C:C)+SUMIF('2021 Раздел 3'!B:B,B90,'2021 Раздел 3'!C:C)+SUMIF('2022 Раздел 4'!B:B,B90,'2022 Раздел 4'!C:C) -> 15506545.84 | N90: 2022-12-30 | O90: РО
A91: 49 | B91: Г. Гатчина, ул. Рощинская, д. 3А | C91: 1993 | E91: панельный | F91: 9 | G91: 2 | H91: 2 | I91: 6130.2 | J91: 4094.2 | K91: 3859.6 | L91: 95 | M91: =SUMIF('2020 Раздел 2'!B:B,B91,'2020 Раздел 2'!C:C)+SUMIF('2021 Раздел 3'!B:B,B91,'2021 Раздел 3'!C:C)+SUMIF('2022 Раздел 4'!B:B,B91,'2022 Раздел 4'!C:C) -> 5471418.92 | N91: 2022-12-30 | O91: РО
A92: 50 | B92: Г. Гатчина, ул. Рощинская, д. 9Г | C92: 1993 | E92: панельный | F92: 9 | G92: 2 | H92: 2 | I92: 6222 | J92: 4056.6 | K92: 3960.4 | L92: 194 | M92: =SUMIF('2020 Раздел 2'!B:B,B92,'2020 Раздел 2'!C:C)+SUMIF('2021 Раздел 3'!B:B,B92,'2021 Раздел 3'!C:C)+SUMIF('2022 Раздел 4'!B:B,B92,'2022 Раздел 4'!C:C) -> 7753272.92 | N92: 2022-12-30 | O92: РО
A93: 51 | B93: Г. Гатчина, ул. Хохлова, д. 2 | C93: 1995 | E93: кирпич | F93: 7 | G93: 3 | H93: 3 | I93: 5575.2 | J93: 3438.6 | K93: 3109.3 | L93: 196 | M93: =SUMIF('2020 Раздел 2'!B:B,B93,'2020 Раздел 2'!C:C)+SUMIF('2021 Раздел 3'!B:B,B93,'2021 Раздел 3'!C:C)+SUMIF('2022 Раздел 4'!B:B,B93,'2022 Раздел 4'!C:C) -> 7914946.38 | N93: 2022-12-30 | O93: РО
A94: 52 | B94: Г. Гатчина, ул. Чехова, д. 14 | C94: 1989 | E94: кирпич | F94: 9 | G94: 2 | H94: 2 | I94: 7847.3 | J94: 3564.3 | K94: 3232.7 | L94: 160 | M94: =SUMIF('2020 Раздел 2'!B:B,B94,'2020 Раздел 2'!C:C)+SUMIF('2021 Раздел 3'!B:B,B94,'2021 Раздел 3'!C:C)+SUMIF('2022 Раздел 4'!B:B,B94,'2022 Раздел 4'!C:C) -> 4984582.2 | N94: 2022-12-30 | O94: РО
A95: Итого по муниципальному образованию | C95: x | D95: x | E95: x | F95: x | G95: =SUM(G81:G94) -> 41 | H95: x | I95: =SUM(I81:I94) -> 114514.4 | J95: 66453.4 | K95: 56723 | L95: 2703 | M95: =SUM(M81:M94) -> 110427986.3 | N95: x | O95: x
A96: Итого по Гатчинскому муниципальному району | C96: x | D96: x | E96: x | F96: x | G96: =G95 -> 41 | H96: x | I96: =SUM(I95) -> 114514.4 | J96: =SUM(J95) -> 66453.4 | K96: =SUM(K95) -> 56723 | L96: =SUM(L95) -> 2703 | M96: =M95 -> 110427986.3 | N96: x | O96: x | P96: =M96-'2020 Раздел 2'!C53-'2021 Раздел 3'!C63-'2022 Раздел 4'!C38 -> 0 | Q96: =#REF!-'2020 Раздел 2'!C53-'2021 Раздел 3'!C63-'2022 Раздел 4'!C38 ->  | V96: =M96-'2020 Раздел 2'!C53-'2021 Раздел 3'!C63-'2022 Раздел 4'!C38 -> 0
A97: Кингисеппский муниципальный район
A98: Муниципальное образование Кингисеппское городское поселение
A99: =A94+1 -> 53 | B99: Г. Кингисепп, просп. Карла Маркса, д. 51 | C99: 1974 | E99: кирпич | F99: 9 | G99: 1 | H99: 1 | I99: 3863.11 | J99: 3863.11 | K99: 3039.33 | L99: 147 | M99: =SUMIF('2020 Раздел 2'!B:B,B99,'2020 Раздел 2'!C:C)+SUMIF('2021 Раздел 3'!B:B,B99,'2021 Раздел 3'!C:C)+SUMIF('2022 Раздел 4'!B:B,B99,'2022 Раздел 4'!C:C) -> 2735709.46 | N99: 2022-12-30 | O99: РО
A100: =A99+1 -> 54 | B100: Г. Кингисепп, б-р Большой , д. 11 | C100: 1986 | E100: монолит | F100: 9 | G100: 4 | H100: 4 | I100: 8025.7 | J100: 8025.7 | K100: 7762.7 | L100: 350 | M100: =SUMIF('2020 Раздел 2'!B:B,B100,'2020 Раздел 2'!C:C)+SUMIF('2021 Раздел 3'!B:B,B100,'2021 Раздел 3'!C:C)+SUMIF('2022 Раздел 4'!B:B,B100,'2022 Раздел 4'!C:C) -> 10942837.84 | N100: 2022-12-30 | O100: РО
A101: 55 | B101: Г. Кингисепп, б-р Большой, д. 15 | C101: 1987 | E101: монолит | F101: 9 | G101: 2 | H101: 2 | I101: 4014.8 | J101: 4014.8 | K101: 3957.6 | L101: 172 | M101: =SUMIF('2020 Раздел 2'!B:B,B101,'2020 Раздел 2'!C:C)+SUMIF('2021 Раздел 3'!B:B,B101,'2021 Раздел 3'!C:C)+SUMIF('2022 Раздел 4'!B:B,B101,'2022 Раздел 4'!C:C) -> 5471418.92 | N101: 2022-12-30 | O101: РО
A102: 56 | B102: Г. Кингисепп, б-р Большой, д. 17 | C102: 1987 | E102: монолит | F102: 9 | G102: 6 | H102: 6 | I102: 12017.6 | J102: 12017.6 | K102: 11735.6 | L102: 541 | M102: =SUMIF('2020 Раздел 2'!B:B,B102,'2020 Раздел 2'!C:C)+SUMIF('2021 Раздел 3'!B:B,B102,'2021 Раздел 3'!C:C)+SUMIF('2022 Раздел 4'!B:B,B102,'2022 Раздел 4'!C:C) -> 16414256.76 | N102: 2022-12-30 | O102: РО
A103: 57 | B103: Г. Кингисепп, ул. Воровского, д. 31в | G103: 2 | I103: 12017.6 | J103: 12017.6 | K103: 11735.6 | L103: 541 | M103: =SUMIF('2020 Раздел 2'!B:B,B103,'2020 Раздел 2'!C:C)+SUMIF('2021 Раздел 3'!B:B,B103,'2021 Раздел 3'!C:C)+SUMIF('2022 Раздел 4'!B:B,B103,'2022 Раздел 4'!C:C) -> 5471418.92 | N103: 2022-12-30 | O103: РО
A104: 58 | B104: Г. Кингисепп, ш. Крикковское, д. 10а | C104: 1990 | E104: панельный | F104: 9 | G104: 2 | H104: 2 | I104: 4018.5 | J104: 4018.5 | K104: 3854.6 | L104: 193 | M104: =SUMIF('2020 Раздел 2'!B:B,B104,'2020 Раздел 2'!C:C)+SUMIF('2021 Раздел 3'!B:B,B104,'2021 Раздел 3'!C:C)+SUMIF('2022 Раздел 4'!B:B,B104,'2022 Раздел 4'!C:C) -> 5471418.92 | N104: 2022-12-30 | O104: РО
A105: 59 | B105: Г. Кингисепп, ш. Крикковское, д. 12 | C105: 1986 | E105: панельный | F105: 9 | G105: 7 | H105: 7 | I105: 12986.58 | J105: 12986.58 | K105: 11323.03 | L105: 705 | M105: =SUMIF('2020 Раздел 2'!B:B,B105,'2020 Раздел 2'!C:C)+SUMIF('2021 Раздел 3'!B:B,B105,'2021 Раздел 3'!C:C)+SUMIF('2022 Раздел 4'!B:B,B105,'2022 Раздел 4'!C:C) -> 19149966.22 | N105: 2022-12-30 | O105: РО
A106: 60 | B106: Г. Кингисепп, ш. Крикковское, д. 14 | C106: 1988 | E106: панельный | F106: 9 | G106: 7 | H106: 7 | I106: 14504.9 | J106: 14504.9 | K106: 13678.1 | L106: 711 | M106: =SUMIF('2020 Раздел 2'!B:B,B106,'2020 Раздел 2'!C:C)+SUMIF('2021 Раздел 3'!B:B,B106,'2021 Раздел 3'!C:C)+SUMIF('2022 Раздел 4'!B:B,B106,'2022 Раздел 4'!C:C) -> 19149966.22 | N106: 2022-12-30 | O106: РО
A107: 61 | B107: Г. Кингисепп, ш. Крикковское, д. 35 | C107: 1981 | E107: панельный | F107: 9 | G107: 5 | H107: 5 | I107: 9763.8 | J107: 9763.8 | K107: 9171 | L107: 584 | M107: =SUMIF('2020 Раздел 2'!B:B,B107,'2020 Раздел 2'!C:C)+SUMIF('2021 Раздел 3'!B:B,B107,'2021 Раздел 3'!C:C)+SUMIF('2022 Раздел 4'!B:B,B107,'2022 Раздел 4'!C:C) -> 13678547.3 | N107: 2022-12-30 | O107: РО
A108: 62 | B108: Г. Кингисепп, ш. Крикковское, д. 39 | C108: 1989 | E108: панельный | F108: 9 | G108: 3 | H108: 3 | I108: 5976.9 | J108: 5976.9 | K108: 5782.17 | L108: 242 | M108: =SUMIF('2020 Раздел 2'!B:B,B108,'2020 Раздел 2'!C:C)+SUMIF('2021 Раздел 3'!B:B,B108,'2021 Раздел 3'!C:C)+SUMIF('2022 Раздел 4'!B:B,B108,'2022 Раздел 4'!C:C) -> 8207128.38 | N108: 2022-12-30 | O108: РО
A109: 63 | B109: Г. Кингисепп, ш. Крикковское, д. 6 | C109: 1986 | E109: панельный | F109: 9 | G109: 6 | H109: 6 | I109: 11470.51 | J109: 11470.51 | K109: 10040.32 | L109: 637 | M109: =SUMIF('2020 Раздел 2'!B:B,B109,'2020 Раздел 2'!C:C)+SUMIF('2021 Раздел 3'!B:B,B109,'2021 Раздел 3'!C:C)+SUMIF('2022 Раздел 4'!B:B,B109,'2022 Раздел 4'!C:C) -> 16414256.76 | N109: 2022-12-30 | O109: РО
A110: Итого по муниципальному образованию | C110: x | D110: x | E110: x | F110: x | G110: =SUM(G99:G109) -> 45 | H110: x | I110: =SUM(I99:I109) -> 98660 | J110: 98660 | K110: 92080.05 | L110: 4823 | M110: 123106925.7 | N110: x | O110: x
A111: Итого по Кингисеппскому муниципальному району | C111: x | D111: x | E111: x | F111: x | G111: =G110 -> 45 | H111: x | I111: =SUM(I110) -> 98660 | J111: =SUM(J110) -> 98660 | K111: =SUM(K110) -> 92080.05 | L111: =SUM(L110) -> 4823 | M111: =M110 -> 123106925.7 | N111: x | O111: x | P111: =M111-'2021 Раздел 3'!C78-'2022 Раздел 4'!C53 -> 0 | Q111: =#REF!-'2022 Раздел 4'!C53 -> 
A112: Киришский муниципальный район
A113: Муниципальное образование Киришское городское поселение
A114: =A109+1 -> 64 | B114: Г. Кириши, бул. Плавницкий, д. 16 | C114: 1992 | E114: панель | F114: 9 | G114: 1 | H114: 1 | I114: 2398.8 | J114: 2121.8 | K114: 2121.8 | L114: 93 | M114: =SUMIF('2020 Раздел 2'!B:B,B114,'2020 Раздел 2'!C:C)+SUMIF('2021 Раздел 3'!B:B,B114,'2021 Раздел 3'!C:C)+SUMIF('2022 Раздел 4'!B:B,B114,'2022 Раздел 4'!C:C) -> 2803026.64 | N114: 2022-12-30 | O114: РО | P114: =M114-'2020 Раздел 2'!C56 -> 0
A115: =A114+1 -> 65 | B115: Г. Кириши, бул. Плавницкий, д. 36 | C115: 1997 | E115: панель | F115: 9 | G115: 1 | H115: 1 | I115: 3356 | J115: 3000 | K115: 3000 | L115: 101 | M115: =SUMIF('2020 Раздел 2'!B:B,B115,'2020 Раздел 2'!C:C)+SUMIF('2021 Раздел 3'!B:B,B115,'2021 Раздел 3'!C:C)+SUMIF('2022 Раздел 4'!B:B,B115,'2022 Раздел 4'!C:C) -> 2735709.46 | N115: 2022-12-30 | O115: РО | P115: =M115-'2021 Раздел 3'!C81-'2022 Раздел 4'!C56 -> 0
A116: 66 | B116: Г. Кириши, пер. Березовый, д. 10 | C116: 1996 | E116: панель | F116: 9 | G116: 1 | H116: 1 | I116: 2631.1 | J116: 2344.1 | K116: 2344.1 | L116: 101 | M116: =SUMIF('2020 Раздел 2'!B:B,B116,'2020 Раздел 2'!C:C)+SUMIF('2021 Раздел 3'!B:B,B116,'2021 Раздел 3'!C:C)+SUMIF('2022 Раздел 4'!B:B,B116,'2022 Раздел 4'!C:C) -> 2638315.46 | N116: 2022-12-30 | O116: РО
A117: 67 | B117: Г. Кириши, просп. Героев, д. 15 | C117: 1994 | E117: панель | F117: 9 | G117: 1 | H117: 1 | I117: 2426.1 | J117: 2147 | K117: 2147 | L117: 71 | M117: =SUMIF('2020 Раздел 2'!B:B,B117,'2020 Раздел 2'!C:C)+SUMIF('2021 Раздел 3'!B:B,B117,'2021 Раздел 3'!C:C)+SUMIF('2022 Раздел 4'!B:B,B117,'2022 Раздел 4'!C:C) -> 2802614.46 | N117: 2022-12-30 | O117: РО
A118: 68 | B118: Г. Кириши, просп. Героев, д. 17 | C118: 1993 | E118: панель | F118: 9 | G118: 2 | H118: 2 | I118: 5223.7 | J118: 4642.3 | K118: 4642.3 | L118: 159 | M118: =SUMIF('2020 Раздел 2'!B:B,B118,'2020 Раздел 2'!C:C)+SUMIF('2021 Раздел 3'!B:B,B118,'2021 Раздел 3'!C:C)+SUMIF('2022 Раздел 4'!B:B,B118,'2022 Раздел 4'!C:C) -> 5567978.94 | N118: 2022-12-30 | O118: РО
A119: 69 | B119: Г. Кириши, просп. Ленина, д. 40 | C119: 1991 | E119: панель/кирпич | F119: 5/7 | G119: 1 | H119: 5 | I119: 5647 | J119: 4916.8 | K119: 3992 | L119: 176 | M119: =SUMIF('2020 Раздел 2'!B:B,B119,'2020 Раздел 2'!C:C)+SUMIF('2021 Раздел 3'!B:B,B119,'2021 Раздел 3'!C:C)+SUMIF('2022 Раздел 4'!B:B,B119,'2022 Раздел 4'!C:C) -> 2735709.46 | N119: 2022-12-30 | O119: РО
A120: 70 | B120: Г. Кириши, просп. Ленина, д. 9 | C120: 1964 | E120: кирпич | F120: 9 | G120: 1 | H120: 1 | I120: 2289.91 | J120: 1995.59 | K120: 1940.69 | L120: 73 | M120: =SUMIF('2020 Раздел 2'!B:B,B120,'2020 Раздел 2'!C:C)+SUMIF('2021 Раздел 3'!B:B,B120,'2021 Раздел 3'!C:C)+SUMIF('2022 Раздел 4'!B:B,B120,'2022 Раздел 4'!C:C) -> 2735709.46 | N120: 2022-12-30 | O120: РО
A121: 71 | B121: Г. Кириши, ул. Декабристов Бестужевых, д. 16 | C121: 1990 | E121: панель | F121: 9 | G121: 1 | H121: 1 | I121: 3261.7 | J121: 2702.6 | K121: 2702.6 | L121: 108 | M121: =SUMIF('2020 Раздел 2'!B:B,B121,'2020 Раздел 2'!C:C)+SUMIF('2021 Раздел 3'!B:B,B121,'2021 Раздел 3'!C:C)+SUMIF('2022 Раздел 4'!B:B,B121,'2022 Раздел 4'!C:C) -> 2803590.77 | N121: 2022-12-30 | O121: РО
A122: 72 | B122: Г. Кириши, ул. Строителей, д. 2 | C122: 1971 | E122: кирпич | F122: 9 | G122: 1 | H122: 5 | I122: 15493.65 | J122: 13099.2 | K122: 11188 | L122: 519 | M122: =SUMIF('2020 Раздел 2'!B:B,B122,'2020 Раздел 2'!C:C)+SUMIF('2021 Раздел 3'!B:B,B122,'2021 Раздел 3'!C:C)+SUMIF('2022 Раздел 4'!B:B,B122,'2022 Раздел 4'!C:C) -> 2735709.46 | N122: 2022-12-30 | O122: РО
A123: 73 | B123: Г. Кириши, ул. Строителей, д. 26 | C123: 1974 | E123: кирпич | F123: 9 | G123: 1 | H123: 5 | I123: 15470.37 | J123: 13282.4 | K123: 11176.5 | L123: 466 | M123: =SUMIF('2020 Раздел 2'!B:B,B123,'2020 Раздел 2'!C:C)+SUMIF('2021 Раздел 3'!B:B,B123,'2021 Раздел 3'!C:C)+SUMIF('2022 Раздел 4'!B:B,B123,'2022 Раздел 4'!C:C) -> 2735709.46 | N123: 2022-12-30 | O123: РО
A124: 74 | B124: Г. Кириши, ул. Строителей, д. 28 | C124: 1993 | E124: панель | F124: 9 | G124: 1 | H124: 1 | I124: 2749.3 | J124: 2473.7 | K124: 2411.3 | L124: 90 | M124: =SUMIF('2020 Раздел 2'!B:B,B124,'2020 Раздел 2'!C:C)+SUMIF('2021 Раздел 3'!B:B,B124,'2021 Раздел 3'!C:C)+SUMIF('2022 Раздел 4'!B:B,B124,'2022 Раздел 4'!C:C) -> 2803316.73 | N124: 2022-12-30 | O124: РО
A125: 75 | B125: Г. Кириши, ул. Строителей, д. 30 | C125: 1991 | E125: панель | F125: 9 | G125: 3 | H125: 3 | I125: 7631.2 | J125: 6837.2 | K125: 6765.7 | L125: 259 | M125: =SUMIF('2020 Раздел 2'!B:B,B125,'2020 Раздел 2'!C:C)+SUMIF('2021 Раздел 3'!B:B,B125,'2021 Раздел 3'!C:C)+SUMIF('2022 Раздел 4'!B:B,B125,'2022 Раздел 4'!C:C) -> 8449707.67 | N125: 2022-12-30 | O125: РО
A126: 76 | B126: Г. Кириши, ул. Строителей, д. 30А | C126: 1996 | E126: кирпич | F126: 9 | G126: 1 | H126: 1 | I126: 2873.8 | J126: 2722 | K126: 2570.2 | L126: 102 | M126: =SUMIF('2020 Раздел 2'!B:B,B126,'2020 Раздел 2'!C:C)+SUMIF('2021 Раздел 3'!B:B,B126,'2021 Раздел 3'!C:C)+SUMIF('2022 Раздел 4'!B:B,B126,'2022 Раздел 4'!C:C) -> 2736190.13 | N126: 2022-12-30 | O126: РО
A127: 77 | B127: Г. Кириши, ул. Строителей, д. 46 | C127: 1991 | E127: панель | F127: 9 | G127: 4 | H127: 4 | I127: 9023.5 | J127: 7928.7 | K127: 7928.7 | L127: 334 | M127: =SUMIF('2020 Раздел 2'!B:B,B127,'2020 Раздел 2'!C:C)+SUMIF('2021 Раздел 3'!B:B,B127,'2021 Раздел 3'!C:C)+SUMIF('2022 Раздел 4'!B:B,B127,'2022 Раздел 4'!C:C) -> 11264437.79 | N127: 2022-12-30 | O127: РО
A128: 78 | B128: Г. Кириши, ул. Энергетиков, д. 40 | C128: 1994 | E128: панель | F128: 9 | G128: 1 | H128: 1 | I128: 2724.9 | J128: 2445.3 | K128: 2445.3 | L128: 87 | M128: =SUMIF('2020 Раздел 2'!B:B,B128,'2020 Раздел 2'!C:C)+SUMIF('2021 Раздел 3'!B:B,B128,'2021 Раздел 3'!C:C)+SUMIF('2022 Раздел 4'!B:B,B128,'2022 Раздел 4'!C:C) -> 2803602.38 | N128: 2022-12-30 | O128: РО
A129: Итого по муниципальному образованию | C129: x | D129: x | E129: x | F129: x | G129: =SUM(G114:G128) -> 21 | H129: x | I129: =SUM(I114:I128) -> 83201.03 | J129: 72658.69 | K129: 67376.19 | L129: 2739 | M129: 58351328.27 | N129: x | O129: x
A130: Итого по Киришскому муниципальному району | C130: x | D130: x | E130: x | F130: x | G130: =G129 -> 21 | H130: x | I130: =SUM(I129) -> 83201.03 | J130: =SUM(J129) -> 72658.69 | K130: =SUM(K129) -> 67376.19 | L130: =SUM(L129) -> 2739 | M130: =M129 -> 58351328.27 | N130: x | O130: x | P130: =M130-'2020 Раздел 2'!C66-'2021 Раздел 3'!C88-'2022 Раздел 4'!C63 -> 0 | Q130: =#REF!-'2020 Раздел 2'!C66-'2021 Раздел 3'!#REF!-'2022 Раздел 4'!C63 -> 
A131: Кировский муниципальный район
A132: Муниципальное образование Кировское городское поселение
A133: =A128+1 -> 79 | B133: Г. Кировск, ул. Молодежная, д. 3 | C133: 1994 | E133: панели | F133: 9 | G133: 1 | H133: 1 | I133: 2073.9 | J133: 2073.9 | K133: 2073.9 | L133: 102 | M133: =SUMIF('2020 Раздел 2'!B:B,B133,'2020 Раздел 2'!C:C)+SUMIF('2021 Раздел 3'!B:B,B133,'2021 Раздел 3'!C:C)+SUMIF('2022 Раздел 4'!B:B,B133,'2022 Раздел 4'!C:C) -> 2638315.46 | N133: 2022-12-30 | O133: РО
A134: =A133+1 -> 80 | B134: Г. Кировск, ул. Молодежная, д. 5 | C134: 1993 | E134: панели | F134: 9 | G134: 1 | H134: 1 | I134: 2127.07 | J134: 2127.07 | K134: 2127.07 | L134: 85 | M134: =SUMIF('2020 Раздел 2'!B:B,B134,'2020 Раздел 2'!C:C)+SUMIF('2021 Раздел 3'!B:B,B134,'2021 Раздел 3'!C:C)+SUMIF('2022 Раздел 4'!B:B,B134,'2022 Раздел 4'!C:C) -> 2638315.46 | N134: 2022-12-30 | O134: РО
A135: =A134+1 -> 81 | B135: Г. Кировск, ул. Ладожская, д. 20 | C135: 1984 | E135: панели | F135: 9 | G135: 8 | H135: 8 | I135: 16911.08 | J135: 14622.87 | K135: 12808.71 | L135: 928 | M135: =SUMIF('2020 Раздел 2'!B:B,B135,'2020 Раздел 2'!C:C)+SUMIF('2021 Раздел 3'!B:B,B135,'2021 Раздел 3'!C:C)+SUMIF('2022 Раздел 4'!B:B,B135,'2022 Раздел 4'!C:C) -> 21085980.96 | N135: 2022-12-30 | O135: РО
A136: Итого по муниципальному образованию | C136: x | D136: x | E136: x | F136: x | G136: =SUM(G133:G135) -> 10 | H136: x | I136: =SUM(I133:I135) -> 21112.05 | J136: 18823.84 | K136: 17009.68 | L136: 1115 | M136: 26362611.88 | N136: x | O136: x
A137: Муниципальное образование Отрадненское городское поселение
A138: =A135+1 -> 82 | B138: Г. Отрадное, ул. Железнодорожная, д. 13 | C138: 1991 | E138: кирпич | F138: 9 | G138: 2 | H138: 2 | I138: 6262.84 | J138: 6262.84 | K138: 4134.32 | L138: 183 | M138: =SUMIF('2020 Раздел 2'!B:B,B138,'2020 Раздел 2'!C:C)+SUMIF('2021 Раздел 3'!B:B,B138,'2021 Раздел 3'!C:C)+SUMIF('2022 Раздел 4'!B:B,B138,'2022 Раздел 4'!C:C) -> 5276630.92 | N138: 2022-12-30 | O138: РО
A139: =A138+1 -> 83 | B139: Г. Отрадное, ул. Зарубина, д. 15 | C139: 1986 | E139: кирпич | F139: 9 | G139: 1 | H139: 1 | I139: 1900 | J139: 1900 | K139: 2573.98 | L139: 132 | M139: =SUMIF('2020 Раздел 2'!B:B,B139,'2020 Раздел 2'!C:C)+SUMIF('2021 Раздел 3'!B:B,B139,'2021 Раздел 3'!C:C)+SUMIF('2022 Раздел 4'!B:B,B139,'2022 Раздел 4'!C:C) -> 2638315.46 | N139: 2022-12-30 | O139: РО
A140: =A139+1 -> 84 | B140: Г. Отрадное, ул. Лесная, д. 10 | C140: 1990 | E140: панель | F140: 9 | G140: 1 | H140: 1 | I140: 3066.28 | J140: 3066.28 | K140: 1995.12 | L140: 83 | M140: =SUMIF('2020 Раздел 2'!B:B,B140,'2020 Раздел 2'!C:C)+SUMIF('2021 Раздел 3'!B:B,B140,'2021 Раздел 3'!C:C)+SUMIF('2022 Раздел 4'!B:B,B140,'2022 Раздел 4'!C:C) -> 3288315.46 | N140: 2022-12-30 | O140: РО
A141: =A140+1 -> 85 | B141: Г. Отрадное, ул. Центральная,д.17 | C141: 1995 | E141: панель | F141: 9 | G141: 4 | H141: 4 | I141: 12228.58 | J141: 12228.58 | K141: 8004.95 | L141: 276 | M141: =SUMIF('2020 Раздел 2'!B:B,B141,'2020 Раздел 2'!C:C)+SUMIF('2021 Раздел 3'!B:B,B141,'2021 Раздел 3'!C:C)+SUMIF('2022 Раздел 4'!B:B,B141,'2022 Раздел 4'!C:C) -> 10553261.84 | N141: 2022-12-30 | O141: РО
A142: =A141+1 -> 86 | B142: Г. Отрадное, ул. Щурова, д.4 | C142: 1988 | E142: панель | F142: 9 | G142: 2 | H142: 2 | I142: 6155.35 | J142: 6155.35 | K142: 4039.83 | L142: 176 | M142: =SUMIF('2020 Раздел 2'!B:B,B142,'2020 Раздел 2'!C:C)+SUMIF('2021 Раздел 3'!B:B,B142,'2021 Раздел 3'!C:C)+SUMIF('2022 Раздел 4'!B:B,B142,'2022 Раздел 4'!C:C) -> 5276630.92 | N142: 2022-12-30 | O142: РО
A143: Итого по муниципальному образованию | C143: x | D143: x | E143: x | F143: x | G143: =SUM(G138:G142) -> 10 | H143: x | I143: =SUM(I138:I142) -> 29613.05 | J143: 29613.05 | K143: 20748.2 | L143: 850 | M143: 27033154.6 | N143: x | O143: x | P143: =M143-'2020 Раздел 2'!C78-'2021 Раздел 3'!C101 -> 0
A144: Итого по Кировскому муниципальному району | C144: x | D144: x | E144: x | F144: x | G144: =G136+G143 -> 20 | H144: x | I144: =I143+I136 -> 50725.1 | J144: =J143+J136 -> 48436.89 | K144: =K143+K136 -> 37757.88 | L144: =L143+L136 -> 1965 | M144: =M136+M143 -> 53395766.48 | N144: x | O144: x | P144: =M144-'2020 Раздел 2'!C79-'2021 Раздел 3'!C102 -> 0 | Q144: =#REF!-'2020 Раздел 2'!C79-'2021 Раздел 3'!C94 -> 
A145: Ломоносовский муниципальный район
A146: Муниципальное образование Аннинское сельское поселение
A147: =A142+1 -> 87 | B147: Г.п. Новоселье, д. 7 | C147: 2002 | F147: 8 | G147: 4 | I147: 8904.3 | J147: 8904.3 | K147: 4472.9 | L147: 159 | M147: =SUMIF('2020 Раздел 2'!B:B,B147,'2020 Раздел 2'!C:C)+SUMIF('2021 Раздел 3'!B:B,B147,'2021 Раздел 3'!C:C)+SUMIF('2022 Раздел 4'!B:B,B147,'2022 Раздел 4'!C:C) -> 10942837.84 | N147: 2022-12-30 | O147: РО
A148: Итого по муниципальному образованию | C148: x | D148: x | E148: x | F148: x | G148: =G147 -> 4 | H148: x | I148: =I147 -> 8904.3 | J148: =SUM(J147) -> 8904.3 | K148: =SUM(K147) -> 4472.9 | L148: =SUM(L147) -> 159 | M148: =M147 -> 10942837.84 | N148: x | O148: x
A149: Итого по Ломоносовскому муниципальному району | C149: x | D149: x | E149: x | F149: x | G149: =G148 -> 4 | H149: x | I149: 8904.3 | J149: 8904.3 | K149: 4472.9 | L149: 159 | M149: =M148 -> 10942837.84 | N149: x | O149: x | Q149: =#REF!-'2020 Раздел 2'!#REF! -> 
A150: Лужский муниципальный район
A151: Муниципальное образование Лужское городское поселение
A152: =A147+1 -> 88 | B152: Г. Луга, просп. Володарского, д. 26 | C152: 1991 | E152: панель | F152: 9 | G152: 2 | H152: 2 | I152: 4870.2 | J152: 3988.5 | K152: 2974.7 | L152: 168 | M152: =SUMIF('2020 Раздел 2'!B:B,B152,'2020 Раздел 2'!C:C)+SUMIF('2021 Раздел 3'!B:B,B152,'2021 Раздел 3'!C:C)+SUMIF('2022 Раздел 4'!B:B,B152,'2022 Раздел 4'!C:C) -> 7140000 | N152: 2022-12-30 | O152: РО
A153: =A152+1 -> 89 | B153: Г. Луга, просп. Урицкого, д. 101 | C153: 1993 | E153: панель | F153: 9 | G153: 1 | H153: 1 | I153: 2745.8 | J153: 2014.5 | K153: 1974.3 | L153: 59 | M153: =SUMIF('2020 Раздел 2'!B:B,B153,'2020 Раздел 2'!C:C)+SUMIF('2021 Раздел 3'!B:B,B153,'2021 Раздел 3'!C:C)+SUMIF('2022 Раздел 4'!B:B,B153,'2022 Раздел 4'!C:C) -> 2638315.46 | N153: 2022-12-30 | O153: РО
A154: 90 | B154: Г. Луга, просп. Урицкого, д. 99 | C154: 1993 | E154: панель | F154: 9 | G154: 1 | H154: 1 | I154: 2737.5 | J154: 2006.2 | K154: 1877.9 | L154: 81 | M154: =SUMIF('2020 Раздел 2'!B:B,B154,'2020 Раздел 2'!C:C)+SUMIF('2021 Раздел 3'!B:B,B154,'2021 Раздел 3'!C:C)+SUMIF('2022 Раздел 4'!B:B,B154,'2022 Раздел 4'!C:C) -> 2638315.46 | N154: 2022-12-30 | O154: РО
A155: 91 | B155: Г. Луга, ул. Миккели, д. 1, кор. 1 | C155: 1993 | E155: панель | F155: 5/9 | G155: 1 | H155: 5 | I155: 7582 | J155: 5566 | K155: 5357.5 | L155: 202 | M155: =SUMIF('2020 Раздел 2'!B:B,B155,'2020 Раздел 2'!C:C)+SUMIF('2021 Раздел 3'!B:B,B155,'2021 Раздел 3'!C:C)+SUMIF('2022 Раздел 4'!B:B,B155,'2022 Раздел 4'!C:C) -> 3876636.46 | N155: 2022-12-30 | O155: РО
A156: 92 | B156: Г. Луга, ул. Миккели, д. 1, кор. 2 | C156: 1993 | E156: ж/б панели | F156: 9 | G156: 1 | H156: 4 | I156: 7586.9 | J156: 5570.5 | K156: 5570.5 | L156: 168 | M156: =SUMIF('2020 Раздел 2'!B:B,B156,'2020 Раздел 2'!C:C)+SUMIF('2021 Раздел 3'!B:B,B156,'2021 Раздел 3'!C:C)+SUMIF('2022 Раздел 4'!B:B,B156,'2022 Раздел 4'!C:C) -> 2736190.13 | N156: 2022-12-30 | O156: РО
A157: 93 | B157: Г. Луга, ул. Миккели, д. 1, кор. 3 | C157: 1994 | E157: панель | F157: 5/9 | G157: 1 | H157: 5 | I157: 7571.2 | J157: 5555.2 | K157: 5201.3 | L157: 189 | M157: =SUMIF('2020 Раздел 2'!B:B,B157,'2020 Раздел 2'!C:C)+SUMIF('2021 Раздел 3'!B:B,B157,'2021 Раздел 3'!C:C)+SUMIF('2022 Раздел 4'!B:B,B157,'2022 Раздел 4'!C:C) -> 3876636.46 | N157: 2022-12-30 | O157: РО
A158: 94 | B158: Г. Луга, ул. Победы, д. 4 | C158: 1988 | E158: панель | F158: 9 | G158: 1 | H158: 1 | I158: 3004.6 | J158: 1954.4 | K158: 1803.1 | L158: 82 | M158: =SUMIF('2020 Раздел 2'!B:B,B158,'2020 Раздел 2'!C:C)+SUMIF('2021 Раздел 3'!B:B,B158,'2021 Раздел 3'!C:C)+SUMIF('2022 Раздел 4'!B:B,B158,'2022 Раздел 4'!C:C) -> 3570000 | N158: 2022-12-30 | O158: РО
A159: 95 | B159: Г. Луга, ул. Победы, д. 7 | C159: 1977 | E159: кирпич | F159: 10 | G159: 1 | H159: 1 | I159: 2562.3 | J159: 2180.7 | K159: 1976.5 | L159: 89 | M159: =SUMIF('2020 Раздел 2'!B:B,B159,'2020 Раздел 2'!C:C)+SUMIF('2021 Раздел 3'!B:B,B159,'2021 Раздел 3'!C:C)+SUMIF('2022 Раздел 4'!B:B,B159,'2022 Раздел 4'!C:C) -> 3700000 | N159: 2022-12-30 | O159: РО
A160: Итого по муниципальному образованию | C160: x | D160: x | E160: x | F160: x | G160: =SUM(G152:G159) -> 9 | H160: x | I160: =SUM(I152:I159) -> 38660.5 | J160: 28836 | K160: 26735.8 | L160: 1038 | M160: 30176093.97 | N160: x | O160: x
A161: Итого по Лужскому муниципальному району | C161: x | D161: x | E161: x | F161: x | G161: =G160 -> 9 | H161: x | I161: =SUM(I160) -> 38660.5 | J161: =SUM(J160) -> 28836 | K161: =SUM(K160) -> 26735.8 | L161: =SUM(L160) -> 1038 | M161: =M160 -> 30176093.97 | N161: x | O161: x | P161: =M161-'2020 Раздел 2'!C90-'2021 Раздел 3'!C113 -> 2736190.13 | Q161: =#REF!-'2020 Раздел 2'!C90-'2021 Раздел 3'!C94 -> 
A162: Сосновоборский городской округ
A163: Муниципальное образование Сосновоборский городской округ
A164: =A159+1 -> 96 | B164: Г. Сосновый Бор, ул. Ленинградская, д. 38 | C164: 1987 | E164: кирпич | F164: 9 | G164: 1 | H164: 1 | I164: 1790.8 | J164: 1090.4 | K164: 1090.4 | L164: 82 | M164: =SUMIF('2020 Раздел 2'!B:B,B164,'2020 Раздел 2'!C:C)+SUMIF('2021 Раздел 3'!B:B,B164,'2021 Раздел 3'!C:C)+SUMIF('2022 Раздел 4'!B:B,B164,'2022 Раздел 4'!C:C) -> 2735709.46 | N164: 2022-12-30 | O164: РО
A165: =A164+1 -> 97 | B165: Г. Сосновый Бор, ул. Молодежная, д. 26 | C165: 1989 | E165: панель | F165: 9 | G165: 2 | H165: 2 | I165: 3940.2 | J165: 3940.2 | K165: 2291.4 | L165: 166 | M165: =SUMIF('2020 Раздел 2'!B:B,B165,'2020 Раздел 2'!C:C)+SUMIF('2021 Раздел 3'!B:B,B165,'2021 Раздел 3'!C:C)+SUMIF('2022 Раздел 4'!B:B,B165,'2022 Раздел 4'!C:C) -> 7594407.96 | N165: 2022-12-30 | O165: РО
A166: =A165+1 -> 98 | B166: Г. Сосновый Бор, ул. Парковая, д. 70 | C166: 1994 | E166: кирпич | F166: 9 | G166: 1 | H166: 1 | I166: 2238.1 | J166: 2238.1 | K166: 1332.8 | L166: 98 | M166: =SUMIF('2020 Раздел 2'!B:B,B166,'2020 Раздел 2'!C:C)+SUMIF('2021 Раздел 3'!B:B,B166,'2021 Раздел 3'!C:C)+SUMIF('2022 Раздел 4'!B:B,B166,'2022 Раздел 4'!C:C) -> 2735709.46 | N166: 2022-12-30 | O166: РО
A167: =A166+1 -> 99 | B167: Г. Сосновый Бор, ул. Сибирская, д. 5 | C167: 1973 | E167: кирпич | F167: 9 | G167: 1 | H167: 1 | I167: 2017.7 | J167: 2017.7 | K167: 1989 | L167: 85 | M167: =SUMIF('2020 Раздел 2'!B:B,B167,'2020 Раздел 2'!C:C)+SUMIF('2021 Раздел 3'!B:B,B167,'2021 Раздел 3'!C:C)+SUMIF('2022 Раздел 4'!B:B,B167,'2022 Раздел 4'!C:C) -> 3880100.4 | N167: 2022-12-30 | O167: РО
A168: =A167+1 -> 100 | B168: Г. Сосновый Бор, ул. Солнечная, д. 30 | C168: 1977 | E168: кирпич | F168: 12 | G168: 2 | H168: 1 | I168: 3993 | J168: 3993 | K168: 2332.7 | L168: 171 | M168: =SUMIF('2020 Раздел 2'!B:B,B168,'2020 Раздел 2'!C:C)+SUMIF('2021 Раздел 3'!B:B,B168,'2021 Раздел 3'!C:C)+SUMIF('2022 Раздел 4'!B:B,B168,'2022 Раздел 4'!C:C) -> 5901813.6 | N168: 2022-12-30 | O168: РО
A169: Итого по муниципальному образованию | C169: x | D169: x | E169: x | F169: x | G169: =SUM(G164:G168) -> 7 | H169: x | I169: =SUM(I164:I168) -> 13979.8 | J169: 13279.4 | K169: 9036.3 | L169: 602 | M169: 22847740.88 | N169: x | O169: x | P169: =M169-'2020 Раздел 2'!C96-'2021 Раздел 3'!C118-'2022 Раздел 4'!C77 -> 0 | Q169: =#REF!-'2020 Раздел 2'!C96 -> 
A170: Сланцевский муниципальный район
A171: Муниципальное образование Сланцевское городское поселение
A172: =A168+1 -> 101 | B172: Г. Сланцы, ул. Гагарина, д. 5а | C172: 1988 | E172: кирпич | F172: 9 | G172: 1 | H172: 1 | I172: 2733.7 | J172: 2080.4 | K172: 1918.33 | L172: 108 | M172: =SUMIF('2020 Раздел 2'!B:B,B172,'2020 Раздел 2'!C:C)+SUMIF('2021 Раздел 3'!B:B,B172,'2021 Раздел 3'!C:C)+SUMIF('2022 Раздел 4'!B:B,B172,'2022 Раздел 4'!C:C) -> 3746636.46 | N172: 2022-12-30 | O172: РО | Q172: =#REF!-'2020 Раздел 2'!C99 -> 
A173: Итого по муниципальному образованию | C173: x | D173: x | E173: x | F173: x | G173: =SUM(G172:G172) -> 1 | H173: x | I173: =SUM(I172:I172) -> 2733.7 | J173: 2080.4 | K173: 1918.33 | L173: 108 | M173: 3746636.46 | N173: x | O173: x | Q173: =#REF!-'2020 Раздел 2'!C100 -> 
A174: Итого по Сланцевскому муниципальному району | C174: x | D174: x | E174: x | F174: x | G174: =G173 -> 1 | H174: x | I174: =SUM(I173) -> 2733.7 | J174: =SUM(J173) -> 2080.4 | K174: =SUM(K173) -> 1918.33 | L174: =SUM(L173) -> 108 | M174: =M173 -> 3746636.46 | N174: x | O174: x | P174: =M174-'2020 Раздел 2'!C101 -> 0 | Q174: =#REF!-'2020 Раздел 2'!C101 -> 
A175: Тихвинский муниципальный район
A176: Муниципальное образование Тихвинское городское поселение
A177: =A172+1 -> 102 | B177: Г. Тихвин, микрорайон 1а, д. 45 | C177: 1995 | E177: панель | F177: 9 | G177: 2 | H177: 2 | I177: 5566.2 | J177: 4027.8 | K177: 2440.9 | L177: 423 | M177: =SUMIF('2020 Раздел 2'!B:B,B177,'2020 Раздел 2'!C:C)+SUMIF('2021 Раздел 3'!B:B,B177,'2021 Раздел 3'!C:C)+SUMIF('2022 Раздел 4'!B:B,B177,'2022 Раздел 4'!C:C) -> 5433061.95 | N177: 2022-12-30 | O177: РО
A178: =A177+1 -> 103 | B178: Г. Тихвин, ул. Советская, д. 1 | C178: 1994 | E178: панель | F178: 10 | G178: 2 | H178: 2 | I178: 3864 | J178: 4108.5 | K178: 2258.7 | L178: 360 | M178: =SUMIF('2020 Раздел 2'!B:B,B178,'2020 Раздел 2'!C:C)+SUMIF('2021 Раздел 3'!B:B,B178,'2021 Раздел 3'!C:C)+SUMIF('2022 Раздел 4'!B:B,B178,'2022 Раздел 4'!C:C) -> 5459425.35 | N178: 2022-12-30 | O178: РО
A179: =A178+1 -> 104 | B179: Г. Тихвин, ул. Машиностроителей, д.46 | C179: 1988 | E179: панель | F179: 9 | G179: 5 | H179: 5 | I179: 14841.1 | J179: 10091.3 | K179: 8441.6 | L179: 521 | M179: =SUMIF('2020 Раздел 2'!B:B,B179,'2020 Раздел 2'!C:C)+SUMIF('2021 Раздел 3'!B:B,B179,'2021 Раздел 3'!C:C)+SUMIF('2022 Раздел 4'!B:B,B179,'2022 Раздел 4'!C:C) -> 13191577.3 | N179: 2022-12-30 | O179: РО
A180: Итого по муниципальному образованию | C180: x | D180: x | E180: x | F180: x | G180: =SUM(G177:G179) -> 9 | H180: x | I180: =SUM(I177:I179) -> 24271.3 | J180: =SUM(J177:J179) -> 18227.6 | K180: 13141.2 | L180: 1304 | M180: 24084064.6 | N180: x | O180: x
A181: Итого по Тихвинскому муниципальному району | C181: x | D181: x | E181: x | F181: x | G181: =G180 -> 9 | H181: x | I181: =SUM(I180) -> 24271.3 | J181: =SUM(J180) -> 18227.6 | K181: 13141.2 | L181: 1304 | M181: 24084064.6 | N181: x | O181: x | P181: =M181-'2020 Раздел 2'!C108-'2021 Раздел 3'!C122 -> 0
A182: Тосненский район
A183: Муниципальное образование Тосненское городское поселение
A184: =A179+1 -> 105 | B184: Г. Тосно, ул. М. Горького, д. 8а | G184: 2 | M184: =SUMIF('2020 Раздел 2'!B:B,B184,'2020 Раздел 2'!C:C)+SUMIF('2021 Раздел 3'!B:B,B184,'2021 Раздел 3'!C:C)+SUMIF('2022 Раздел 4'!B:B,B184,'2022 Раздел 4'!C:C) -> 5276630.92 | N184: 2022-12-30 | O184: РО
A185: =A184+1 -> 106 | B185: Г. Тосно, пр. Ленина, д. 19 | G185: 4 | M185: =SUMIF('2020 Раздел 2'!B:B,B185,'2020 Раздел 2'!C:C)+SUMIF('2021 Раздел 3'!B:B,B185,'2021 Раздел 3'!C:C)+SUMIF('2022 Раздел 4'!B:B,B185,'2022 Раздел 4'!C:C) -> 10553261.84 | N185: 2022-12-30 | O185: РО
A186: Итого по муниципальному образованию | C186: x | D186: x | E186: x | F186: x | G186: =SUM(G184:G185) -> 6 | H186: x | I186: =SUM(I184:I184) -> 0 | J186: 0 | K186: 0 | L186: 0 | M186: =SUM(M184:M185) -> 15829892.76 | N186: x | O186: x
A187: Итого по Тосненскому району | C187: x | D187: x | E187: x | F187: x | G187: =G186 -> 6 | H187: x | I187: =SUM(I186) -> 0 | J187: =SUM(J186) -> 0 | K187: =SUM(K186) -> 0 | L187: =SUM(L186) -> 0 | M187: =M186 -> 15829892.76 | N187: x | O187: x | P187: =M187-'2020 Раздел 2'!C114-'2021 Раздел 3'!C129 -> 0
A188: ИТОГО по Ленинградской области | C188: x | D188: x | E188: x | F188: x | G188: =G187+G181+G174+G169+G161+G149+G144+G130+G111+G96+G78+G49+G21 -> 245 | H188: х | I188: =I187+I181+I174+I169+I161+I149+I144+I130+I111+I96+I78+I49+I21 -> 641457.79 | J188: =J187+J181+J174+J169+J161+J149+J144+J130+J111+J96+J78+J49+J21 -> 554524.94 | K188: =K187+K181+K174+K169+K161+K149+K144+K130+K111+K96+K78+K49+K21 -> 453636.26 | L188: =L187+L181+L174+L169+L161+L149+L144+L130+L111+L96+L78+L49+L21 -> 22400.1 | M188: =M187+M181+M174+M169+M161+M149+M144+M130+M111+M96+M78+M49+M21 -> 672154278.8 | N188: x | O188: x | P188: =M188-'2020 Раздел 2'!C115-'2021 Раздел 3'!C130-'2022 Раздел 4'!C78 -> 0
A189: Осуществление строительного контроля | C189: x | D189: x | E189: x | F189: x | G189: x | H189: x | I189: x | J189: x | K189: x | L189: x | M189: ='2020 Раздел 2'!C116+'2021 Раздел 3'!C131+'2022 Раздел 4'!C79 -> 13408812.92 | N189: х | O189: х
A190: Итого по Ленинградской области со строительным контролем | C190: x | D190: x | E190: x | F190: x | G190: x | H190: x | I190: x | J190: x | K190: x | L190: x | M190: =M188+M189 -> 685563091.7 | N190: х | O190: х | P190: =M190-'2020 Раздел 2'!C117-'2021 Раздел 3'!C132-'2022 Раздел 4'!C80 -> 0
O918: =#REF!+#REF!+#REF!+#REF!+#REF!+#REF! -> 

Sheet 2020 Раздел 2
A1: Раздел II. Перечень многоквартирных домов, в которых будет проводиться капитальный ремонт лифтового оборудования в 2020 году, за счет средств собственников, формирующих фонд капитального ремонта на счетах регионального оператора
A2: № п\п | B2: Адрес МКД | C2: Стоимость капитального ремонта ВСЕГО | D2: Ремонт или замена лифтового оборудования | F2: ТО | G2: Проектные работы
C3: руб. | D3: ед. | E3: руб | F3: руб. | G3: руб.
A4: 1 | B4: 2 | C4: 3 | D4: 4 | E4: 5 | F4: 6 | G4: 7
A5: Всеволожский муниципальный район
A6: Муниципальное образование Город Всеволожск
A7: 1 | B7: Г. Всеволожск, ул. Александровская, д. 81, корп. 3 | C7: =E7+F7+G7 -> 260000 | G7: 260000 | H7: 260000
A8: =A7+1 -> 2 | B8: Г. Всеволожск, ул. Балашова, д. 8/3 | C8: =E8+F8+G8 -> 260000 | G8: 260000
A9: =A8+1 -> 3 | B9: Г. Всеволожск, ул. Василеозерская, д. 5 | C9: =E9+F9+G9 -> 260000 | G9: 260000
A10: =A9+1 -> 4 | B10: Г. Всеволожск, ул. Ленинградская, д. 24/84 | C10: =E10+F10+G10 -> 100750 | G10: 100750
A11: Итого по муниципальному образованию | C11: =SUM(C7:C10) -> 880750 | D11: =SUM(D7:D10) -> 0 | E11: =SUM(E7:E10) -> 0 | F11: =SUM(F7:F10) -> 0 | G11: =SUM(G7:G10) -> 880750
A12: Муниципальное образование Муринское городское поселение
A13: =A10+1 -> 5 | B13: г. Мурино, ул. Оборонная, д. 12 | C13: =E13+F13+G13 -> 260000 | G13: 260000
A14: =A13+1 -> 6 | B14: г. Мурино, ул. Оборонная, д. 24 | C14: =E14+F14+G14 -> 390000 | G14: =130000*3 -> 390000
A15: =A14+1 -> 7 | B15: г. Мурино, ул. Оборонная, д. 22 | C15: =E15+F15+G15 -> 130000 | G15: 130000
A16: Итого по муниципальному образованию | C16: =SUM(C13:C15) -> 780000 | D16: =SUM(D13:D15) -> 0 | E16: =SUM(E13:E15) -> 0 | F16: =SUM(F13:F15) -> 0 | G16: =SUM(G13:G15) -> 780000
A17: Муниципальное образование Свердловское городское поселение
A18: =A15+1 -> 8 | B18: Пос. им. Свердлова, микрорайон 1, д. 8 | C18: =E18+F18+G18 -> 520000 | G18: 520000
A19: Итого по муниципальному образованию | C19: =C18 -> 520000 | D19: =D18 -> 0 | E19: =E18 -> 0 | F19: =F18 -> 0 | G19: =G18 -> 520000
A20: Муниципальное образование Сертолово
A21: =A18+1 -> 9 | B21: Г. Сертолово, микрорайон Сертолово-1, ул. Молодежная, д. 8, корп. 2 | C21: =E21+F21+G21 -> 390000 | G21: 390000
A22: =A21+1 -> 10 | B22: Г. Сертолово, микрорайон Сертолово-1, ул. Центральная, д. 6, корп. 1 | C22: =E22+F22+G22 -> 8667924.47 | D22: 3 | E22: =SUM([1]субсидия!$C$166:$C$168) -> 8057534.09 | F22: 220390.38 | G22: 390000
A23: =A22+1 -> 11 | B23: Г. Сертолово, микрорайон Сертолово-1, ул. Центральная, д. 7, корп. 1 | C23: =E23+F23+G23 -> 8680076.04 | D23: 3 | E23: =SUM([1]субсидия!$C$169:$C$171) -> 8069685.66 | F23: 220390.38 | G23: =D23*130000 -> 390000
A24: Итого по муниципальному образованию | C24: =SUM(C21:C23) -> 17738000.51 | D24: =SUM(D21:D23) -> 6 | E24: =SUM(E21:E23) -> 16127219.75 | F24: =SUM(F21:F23) -> 440780.76 | G24: =SUM(G21:G23) -> 1170000
A25: Итого по Всеволожскому муниципальному району | C25: =C24+C16+C11+C19 -> 19918750.51 | D25: =D24+D16+D11+D19 -> 6 | E25: =E24+E16+E11+E19 -> 16127219.75 | F25: =F24+F16+F11+F19 -> 440780.76 | G25: =G24+G16+G11+G19 -> 3350750
A26: Выборгский район
A27: Муниципальное образование Город Выборг
A28: =A23+1 -> 12 | B28: Г. Выборг, бул. Кутузова, д. 33 | C28: =E28+F28+G28 -> 2546289.69 | D28: 1 | E28: =[1]субсидия!$C$295 -> 2362913.11 | F28: 53376.58 | G28: 130000
A29: =A28+1 -> 13 | B29: Г. Выборг, пр. Победы, д. 8 | C29: 2453855.13 | D29: 1 | E29: =[1]субсидия!$C$287 -> 2262874.14 | F29: 60980.99 | G29: 130000
A30: 14 | B30: Г. Выборг, просп. Победы, д. 12 | C30: 520000 | G30: 520000
A31: 15 | B31: Г. Выборг, ул. Гагарина, д. 29 | C31: 11629909.38 | D31: 3 | E31: 11019519 | F31: 220390.38 | G31: 390000
A32: 16 | B32: Г. Выборг, ул. Гагарина, д. 65 | C32: 2453784.56 | D32: 1 | E32: =[1]субсидия!$C$290 -> 2262803.57 | F32: 60980.99 | G32: 130000
A33: 17 | B33: Г. Выборг, ул. Крепостная, д. 39а | C33: 3876636.46 | D33: 1 | E33: 3673173 | F33: =E33*0.02 -> 73463.46 | G33: =D33*130000 -> 130000
A34: 18 | B34: Г. Выборг, ул. Офицерская, д. 12 | C34: 2499849.44 | D34: 1 | E34: =[1]субсидия!$C$293 -> 2305066.22 | F34: 64783.22 | G34: =D34*130000 -> 130000
A35: 19 | B35: Г. Выборг, ул. Офицерская, д. 14 | C35: 2502256.98 | D35: 1 | E35: =[1]субсидия!$C$294 -> 2307473.76 | F35: 64783.22 | G35: =D35*130000 -> 130000
A36: Итого по муниципальному образованию | C36: =SUM(C28:C35) -> 28482581.64 | D36: =SUM(D28:D35) -> 9 | E36: =SUM(E28:E35) -> 26193822.8 | F36: =SUM(F28:F35) -> 598758.84 | G36: =SUM(G28:G35) -> 1690000
A37: Муниципальное образование Светогорское городское поселение
A38: =A35+1 -> 20 | B38: Г. Светогорск, ул. Красноармейская, д. 26 | C38: =E38+F38+G38 -> 8324810.25 | D38: 3 | E38: 8126680.65 | F38: 198129.6 | G38: 0
A39: =A38+1 -> 21 | B39: Г. Светогорск, ул. Красноармейская, д. 32 | C39: =E39+F39+G39 -> 9594930.01 | D39: 5 | E39: 8782541.66 | F39: 322288.35 | G39: 490100
A40: =A39+1 -> 22 | B40: Г. Светогорск, ул. Красноармейская, д. 8 | C40: =E40+F40+G40 -> 7759701.1 | D40: 3 | E40: =SUM([1]субсидия!$C$296:$C$298) -> 7170098.2 | F40: =66534.3+66534.3+66534.3 -> 199602.9 | G40: =D40*130000 -> 390000
A41: Итого по муниципальному образованию | C41: =SUM(C38:C40) -> 25679441.36 | D41: =SUM(D38:D40) -> 11 | E41: =SUM(E38:E40) -> 24079320.51 | F41: =SUM(F38:F40) -> 720020.85 | G41: =SUM(G38:G40) -> 880100
A42: Муниципальное образование Советское городское поселение
A43: =A40+1 -> 23 | B43: Г.п. Советский, ул. Садовая, д. 46 | C43: =E43+F43+G43 -> 2381097.22 | D43: 1 | E43: 2313231.88 | F43: 67865.34
A44: Итого по муниципальному образованию | C44: =SUM(C43) -> 2381097.22 | D44: =SUM(D43) -> 1 | E44: =SUM(E43) -> 2313231.88 | F44: =SUM(F43) -> 67865.34 | G44: =SUM(G43) -> 0
A45: Итого по Выборгскому району | C45: =C41+C36+C44 -> 56543120.22 | D45: =D41+D36+D44 -> 21 | E45: =E41+E36+E44 -> 52586375.19 | F45: =F41+F36+F44 -> 1386645.03 | G45: =G41+G36+G44 -> 2570100
A46: Гатчинский муниципальный район
A47: Муниципальное образование Город Гатчина
A48: =A43+1 -> 24 | B48: Г. Гатчина, ул. Красных Военлётов, д. 9 | C48: =E48+F48+G48 -> 520000 | G48: =4*130000 -> 520000
A49: =A48+1 -> 25 | B49: Г. Гатчина, ул. Рощинская, д. 19 | C49: =E49+F49+G49 -> 15506545.84 | D49: 4 | E49: 14692692 | F49: 293853.84 | G49: =D49*130000 -> 520000
A50: =A49+1 -> 26 | B50: Г. Гатчина, ул. Рощинская, д. 9Г | C50: =E50+F50+G50 -> 7753272.92 | D50: 2 | E50: 7346346 | F50: 146926.92 | G50: =D50*130000 -> 260000
A51: =A50+1 -> 27 | B51: Г. Гатчина, ул. Хохлова, д. 2 | C51: =E51+F51+G51 -> 390000 | G51: 390000
A52: Итого по муниципальному образованию | C52: =SUM(C48:C51) -> 24169818.76 | D52: =SUM(D48:D51) -> 6 | E52: =SUM(E48:E51) -> 22039038 | F52: =SUM(F48:F51) -> 440780.76 | G52: =SUM(G48:G51) -> 1690000
A53: Итого по Гатчинскому муниципальному району | C53: =C52 -> 24169818.76 | D53: =D52 -> 6 | E53: =E52 -> 22039038 | F53: =F52 -> 440780.76 | G53: =G52 -> 1690000
A54: Киришский муниципальный район
A55: Муниципальное образование Киришское городское поселение
A56: =A51+1 -> 28 | B56: Г. Кириши, бул. Плавницкий, д. 16 | C56: =E56+F56+G56 -> 2803026.64 | D56: 1 | E56: =[1]субсидия!$C$322 -> 2599563.18 | F56: 73463.46 | G56: =D56*130000 -> 130000
A57: =A56+1 -> 29 | B57: Г. Кириши, пер. Березовый, д. 10 | C57: 130000 | G57: 130000
A58: 30 | B58: Г. Кириши, просп. Героев, д. 15 | C58: 2802614.46 | D58: 1 | E58: =[1]субсидия!$C$323 -> 2599151 | F58: 73463.46 | G58: =D58*130000 -> 130000
A59: 31 | B59: Г. Кириши, просп. Героев, д. 17 | C59: 5567978.94 | D59: 2 | E59: =SUM([1]субсидия!$C$324:$C$325) -> 5161052.02 | F59: 146926.92 | G59: 260000
A60: 32 | B60: Г. Кириши, ул. Декабристов Бестужевых, д. 16 | C60: 2803590.77 | D60: 1 | E60: =[1]субсидия!$C$326 -> 2600127.31 | F60: 73463.46 | G60: 130000
A61: 33 | B61: Г. Кириши, ул. Строителей, д. 28 | C61: 2803316.73 | D61: 1 | E61: =[1]субсидия!$C$327 -> 2599853.27 | F61: 73463.46 | G61: 130000
A62: 34 | B62: Г. Кириши, ул. Строителей, д. 30 | C62: 8449707.67 | D62: 3 | E62: =SUM([1]субсидия!$C$328:$C$330) -> 7839317.29 | F62: 220390.38 | G62: 390000
A63: 35 | B63: Г. Кириши, ул. Строителей, д. 46 | C63: 11264437.79 | D63: 4 | E63: =SUM([1]субсидия!$C$331:$C$334) -> 10450583.95 | F63: 293853.84 | G63: 520000
A64: =A63+1 -> 36 | B64: Г. Кириши, ул. Энергетиков, д. 40 | C64: 2803602.38 | D64: 1 | E64: =[1]субсидия!$C$335 -> 2600138.92 | F64: 73463.46 | G64: 130000
A65: Итого по муниципальному образованию | C65: =SUM(C56:C64) -> 39428275.38 | D65: =SUM(D56:D64) -> 14 | E65: =SUM(E56:E64) -> 36449786.94 | F65: =SUM(F56:F64) -> 1028488.44 | G65: =SUM(G56:G64) -> 1950000
A66: Итого по Киришскому муниципальному району | C66: =C65 -> 39428275.38 | D66: =D65 -> 14 | E66: =E65 -> 36449786.94 | F66: =F65 -> 1028488.44 | G66: =G65 -> 1950000
A67: Кировский муниципальный район
A68: Муниципальное образование Кировское городское поселение
A69: =A64+1 -> 37 | B69: Г. Кировск, ул. Молодежная, д. 3 | C69: =E69+F69+G69 -> 130000 | G69: 130000
A70: =A69+1 -> 38 | B70: Г. Кировск, ул. Молодежная, д. 5 | C70: =E70+F70+G70 -> 130000 | G70: 130000
A71: Итого по муниципальному образованию | C71: =SUM(C69:C70) -> 260000 | D71: =SUM(D69:D70) -> 0 | E71: =SUM(E69:E70) -> 0 | F71: =SUM(F69:F70) -> 0 | G71: =SUM(G69:G70) -> 260000
A72: Муниципальное образование Отрадненское городское поселение
A73: =A70+1 -> 39 | B73: Г. Отрадное, ул. Железнодорожная, д. 13 | C73: =E73+F73+G73 -> 260000 | G73: 260000
A74: =A73+1 -> 40 | B74: Г. Отрадное, ул. Зарубина, д. 15 | C74: =E74+F74+G74 -> 130000 | G74: 130000
A75: =A74+1 -> 41 | B75: Г. Отрадное, ул. Лесная, д. 10 | C75: =E75+F75+G75 -> 780000 | G75: 780000
A76: =A75+1 -> 42 | B76: Г. Отрадное, ул. Центральная,д.17 | C76: =E76+F76+G76 -> 520000 | G76: 520000
A77: =A76+1 -> 43 | B77: Г. Отрадное, ул. Щурова, д.4 | C77: =E77+F77+G77 -> 260000 | G77: 260000
A78: Итого по муниципальному образованию | C78: =SUM(C73:C77) -> 1950000 | D78: =SUM(D73:D77) -> 0 | E78: =SUM(E73:E77) -> 0 | F78: =SUM(F73:F77) -> 0 | G78: =SUM(G73:G77) -> 1950000
A79: Итого по Кировскому муниципальному району | C79: =+C78+C71 -> 2210000 | D79: =+D78+D71 -> 0 | E79: =+E78+E71 -> 0 | F79: =+F78+F71 -> 0 | G79: =+G78+G71 -> 2210000
A80: Лужский муниципальный район
A81: Муниципальное образование Лужское городское поселение
A82: =A77+1 -> 44 | B82: Г. Луга, просп. Володарского, д. 26 | C82: =E82+F82+G82 -> 7140000 | D82: 2 | E82: 7000000 | F82: 140000
A83: =A82+1 -> 45 | B83: Г. Луга, ул. Миккели, д. 1, кор. 1 | C83: 3876636.46 | D83: 1 | E83: 3673173 | F83: 73463.46 | G83: =D83*130000 -> 130000
A84: 46 | B84: Г. Луга, ул. Миккели, д. 1, кор. 3 | C84: 3876636.46 | D84: 1 | E84: 3673173 | F84: 73463.46 | G84: =D84*130000 -> 130000
A85: 47 | B85: Г. Луга, ул. Победы, д. 4 | C85: 3570000 | D85: 1 | E85: 3500000 | F85: 70000
A86: 48 | B86: Г. Луга, ул. Победы, д. 7 | C86: 3700000 | D86: 1 | E86: 3500000 | F86: 70000 | G86: =D86*130000 -> 130000
A87: 49 | B87: Г. Луга, просп. Урицкого, д. 101 | C87: 130000 | G87: 130000
A88: 50 | B88: Г. Луга, просп. Урицкого, д. 99 | C88: 130000 | G88: 130000
A89: Итого по муниципальному образованию | C89: =SUM(C82:C88) -> 22423272.92 | D89: =SUM(D82:D88) -> 6 | E89: 21346346 | F89: 426926.92 | G89: =SUM(G82:G88) -> 650000
A90: Итого по Лужскому муниципальному району | C90: =C89 -> 22423272.92 | D90: =D89 -> 6 | E90: =E89 -> 21346346 | F90: =F89 -> 426926.92 | G90: =G89 -> 650000
A91: Сосновоборский городской округ
A92: Муниципальное образование Сосновоборский городской округ
A93: =A88+1 -> 51 | B93: Г. Сосновый Бор, ул. Молодежная, д. 26 | C93: =E93+F93+G93 -> 7594407.96 | D93: 2 | E93: =D93*3641478+162542 -> 7445498 | F93: =E93*0.02 -> 148909.96
A94: =A93+1 -> 52 | B94: Г. Сосновый Бор, ул. Сибирская, д. 5 | C94: =E94+F94+G94 -> 3880100.4 | D94: 1 | E94: 3804020 | F94: 76080.4
A95: =A94+1 -> 53 | B95: Г. Сосновый Бор, ул. Солнечная, д. 30 | C95: =E95+F95+G95 -> 5901813.6 | D95: 2 | E95: 5753330.4 | F95: 148483.2
A96: Итого по муниципальному образованию | C96: =SUM(C93:C95) -> 17376321.96 | D96: =SUM(D93:D95) -> 5 | E96: =SUM(E93:E95) -> 17002848.4 | F96: =SUM(F93:F95) -> 373473.56 | G96: =SUM(G93:G95) -> 0
A97: Сланцевский муниципальный район
A98: Муниципальное образование Сланцевское городское поселение
A99: =A95+1 -> 54 | B99: Г. Сланцы, ул. Гагарина, д. 5а | C99: =E99+F99+G99 -> 3746636.46 | D99: 1 | E99: 3673173 | F99: 73463.46
A100: Итого по муниципальному образованию | C100: =SUM(C99:C99) -> 3746636.46 | D100: =SUM(D99:D99) -> 1 | E100: =SUM(E99:E99) -> 3673173 | F100: =SUM(F99:F99) -> 73463.46 | G100: =SUM(G99:G99) -> 0
A101: Итого по Сланцевскому муниципальному району | C101: =C100 -> 3746636.46 | D101: =D100 -> 1 | E101: =E100 -> 3673173 | F101: =F100 -> 73463.46 | G101: =G100 -> 0
A102: Тихвинский муниципальный район
A103: Муниципальное образование Тихвинское городское поселение
A104: =A99+1 -> 55 | B104: Г. Тихвин, микрорайон 1а, д. 45 | C104: =E104+F104+G104 -> 5433061.95 | D104: 2 | E104: =SUM([1]субсидия!$C$317:$C$318) -> 5026135.03 | F104: 146926.92 | G104: =D104*130000 -> 260000
A105: =A104+1 -> 56 | B105: Г. Тихвин, ул. Машиностроителей, д.46 | C105: =E105+F105+G105 -> 650000 | G105: 650000
A106: =A105+1 -> 57 | B106: Г. Тихвин, ул. Советская, д. 1 | C106: =E106+F106+G106 -> 5459425.35 | D106: 2 | E106: =SUM([1]субсидия!$C$319:$C$320) -> 5052498.43 | F106: 146926.92 | G106: =D106*130000 -> 260000
A107: Итого по муниципальному образованию | C107: =SUM(C104:C106) -> 11542487.3 | D107: =SUM(D104:D106) -> 4 | E107: =SUM(E104:E106) -> 10078633.46 | F107: =SUM(F104:F106) -> 293853.84 | G107: =SUM(G104:G106) -> 1170000
A108: Итого по Тихвинскому муниципальному району | C108: =C107 -> 11542487.3 | D108: =D107 -> 4 | E108: =E107 -> 10078633.46 | F108: =F107 -> 293853.84 | G108: =G107 -> 1170000
A109: Тосненский район
A110: Муниципальное образование Тосненское городское поселение
A111: =A106+1 -> 58 | B111: Г. Тосно, ул. М. Горького, д. 8а | C111: =E111+F111+G111 -> 260000 | G111: 260000
A112: =A111+1 -> 59 | B112: Г. Тосно, пр. Ленина, д. 19 | C112: =E112+F112+G112 -> 520000 | G112: =130000*4 -> 520000
A113: Итого по муниципальному образованию | C113: =SUM(C111:C112) -> 780000 | D113: =SUM(D111:D112) -> 0 | E113: =SUM(E111:E112) -> 0 | F113: =SUM(F111:F112) -> 0 | G113: =SUM(G111:G112) -> 780000
A114: Итого по Тосненскому району | C114: =C113 -> 780000 | D114: =D113 -> 0 | E114: =E113 -> 0 | F114: =F113 -> 0 | G114: =G113 -> 780000
A115: ИТОГО по Ленинградской области | C115: =C114+C108+C101+C96+C90+C79+C66+C53+C45+C25 -> 198138683.5 | D115: =D114+D108+D101+D96+D90+D79+D66+D53+D45+D25 -> 63 | E115: =E114+E108+E101+E96+E90+E79+E66+E53+E45+E25 -> 179303420.7 | F115: =F114+F108+F101+F96+F90+F79+F66+F53+F45+F25 -> 4464412.77 | G115: =G114+G108+G101+G96+G90+G79+G66+G53+G45+G25 -> 14370850
A116: Осуществление строительного контроля | C116: =(C115-F115-G115)*0.0214 -> 3837093.204
A117: Итого по Ленинградской области со строительным контролем | C117: =C115+C116 -> 201975776.7
G191: =SUM(G178:G190) -> 0
G214: =SUM(G196:G213) -> 0
G225: =SUM(G219:G224) -> 0
G233: =SUM(G227:G232) -> 0
G239: =SUM(G235:G237) -> 0
G240: =G191+G214+G225+G239+G233+G217 -> 0
G247: =SUM(G243:G246) -> 0
G311: =SUM(G252:G310) -> 0
G318: =SUM(G317) -> 0
G325: =G247+G311+G318 -> 0
G340: =SUM(G328:G339) -> 0
G345: =SUM(G342:G344) -> 0
G346: =G340+G345 -> 0
G376: =SUM(G349:G375) -> 0
G381: =SUM(G378:G380) -> 0
G385: =SUM(G383:G384) -> 0
G386: =G376+G385+G381 -> 0
G413: =SUM(G389:G412) -> 0
G430: =SUM(G415:G429) -> 0
G437: =SUM(G432:G436) -> 0
G440: =SUM(G439:G439) -> 0
G448: =SUM(G442:G447) -> 0
G456: =SUM(G450:G455) -> 0
G457: =#REF!+#REF!+#REF!+#REF!+#REF!+F457+#REF!+#REF!+#REF!+#REF!+#REF!+#REF!+#REF!+#REF! -> 
G458: =#REF!+#REF!+#REF!+#REF!+#REF!+F458+#REF!+#REF!+#REF!+#REF!+#REF!+#REF!+#REF!+#REF! -> 
G459: =#REF!+#REF!+#REF!+#REF!+#REF!+F459+#REF!+#REF!+#REF!+#REF!+#REF!+#REF!+#REF!+#REF! -> 
G460: =#REF!+#REF!+#REF!+#REF!+#REF!+F460+#REF!+#REF!+#REF!+#REF!+#REF!+#REF!+#REF!+#REF! -> 
G461: =#REF!+#REF!+#REF!+#REF!+#REF!+F461+#REF!+#REF!+#REF!+#REF!+#REF!+#REF!+#REF!+#REF! -> 
G487: =SUM(G463:G486) -> 0
G488: =SUM(G487+G456+G448+G440+G437+G430+G413) -> 0
G524: =SUM(G491:G523) -> 0
G525: =G524 -> 0
G534: =SUM(G528:G531) -> 0
G537: =SUM(G536:G536) -> 0
G542: =SUM(G539:G541) -> 0
G548: =SUM(G544:G547) -> 0
G554: =SUM(G550:G553) -> 0
G558: =SUM(G556:G557) -> 0
G564: =SUM(G560:G563) -> 0
G565: =G542+G534+G537+G564+G558+G548+G554 -> 0
G570: =SUM(G568:G569) -> 0
G593: =SUM(G584:G592) -> 0
G597: =SUM(G595:G596) -> 0
G600: =SUM(G599:G599) -> 0
G609: =SUM(G602:G608) -> 0
G617: =SUM(G611:G616) -> 0
G620: =SUM(G619:G619) -> 0
G623: =SUM(G622) -> 0
G630: =G570+G593+G597+G600+G609+G617+G620+G623+G629 -> 0
G641: =SUM(G633:G640) -> 0
G642: =G641 -> 0
G650: =SUM(G645:G649) -> 0
G656: =SUM(G652:G655) -> 0
G661: =SUM(G658:G660) -> 0
G667: =SUM(G663:G666) -> 0
G671: =SUM(G669:G670) -> 0
G679: =G677+G678 -> 0
G680: =G650+G656+G661+G667+G671 -> 0
G684: =SUM(G683:G683) -> 0
G687: =SUM(G686) -> 0
G725: =SUM(G689:G724) -> 0
G726: =G725+G687+G684 -> 0
G847: =SUM(G728:G846) -> 0
G959: =SUM(G855:G958) -> 0
G979: =SUM(G961:G978) -> 0
G980: =G959+G979 -> 0
G984: =SUM(G983:G983) -> 0
G992: =SUM(G986:G991) -> 0
G995: =SUM(G994:G994) -> 0
G1015: =SUM(G997:G1014) -> 0
G1018: =SUM(G1017:G1017) -> 0
G1021: =SUM(G1020) -> 0
G1022: =G992+G995+G1018+G1015+G984+G1021 -> 0

Sheet 2021 Раздел 3
A1: Раздел III. Перечень многоквартирных домов, в которых будет проводиться капитальный ремонт лифтового оборудования в 2021 году, за счет средств собственников, формирующих фонд капитального ремонта на счетах регионального оператора
A2: № п\п | B2: Адрес МКД | C2: Стоимость капитального ремонта ВСЕГО | D2: Ремонт или замена лифтового оборудования | F2: ТО | G2: Проектные работы
C3: руб. | D3: ед. | E3: руб | F3: руб. | G3: руб.
A4: 1 | B4: 2 | C4: 3 | D4: 4 | E4: 5 | F4: 6 | G4: 7
A5: Волховский муниципальный район
A6: Муниципальное образование Город Волхов
A7: 1 | B7: Г. Волхов, просп. Волховский, д. 57 | C7: =E7+F7+G7 -> 130000 | G7: 130000
A8: Итого по муниципальному образованию | C8: =SUM(C7:C7) -> 130000 | G8: =SUM(G7:G7) -> 130000
A9: Итого по Волховскому муниципальному району | C9: =C8 -> 130000 | G9: =G8 -> 130000
A10: Всеволожский муниципальный район
A11: Муниципальное образование Город Всеволожск
A12: =A7+1 -> 2 | B12: Г. Всеволожск, ул. Александровская, д. 81, корп. 3 | C12: =E12+F12+G12 -> 5016630.92 | D12: 2 | E12: =2434852*D12 -> 4869704 | F12: 146926.92
A13: =A12+1 -> 3 | B13: Г. Всеволожск, ул. Балашова, д. 8/3 | C13: 5016630.92 | D13: 2 | E13: =2434852*D13 -> 4869704 | F13: 146926.92
A14: 4 | B14: Г. Всеволожск, ул. Вокка, д. 3 | C14: 260000 | G14: 260000
A15: 5 | B15: Г. Всеволожск, ул. Василеозерская, д. 5 | C15: 5016630.92 | D15: 2 | E15: =2434852*D15 -> 4869704 | F15: 146926.92
A16: 6 | B16: Г. Всеволожск, ул. Василеозерская, д. 7 | C16: 260000 | G16: 260000
A17: 7 | B17: Г. Всеволожск, ул. Ленинградская, д. 30, корп. 1 | C17: 130000 | G17: 130000
A18: 8 | B18: Г. Всеволожск, ул. Ленинградская, д. 24/84 | C18: 12500612 | D18: 5 | E18: 12174260 | F18: 326352
A19: Итого по муниципальному образованию | C19: =SUM(C12:C18) -> 28200504.76 | D19: =SUM(D12:D18) -> 11 | E19: =SUM(E12:E18) -> 26783372 | F19: =SUM(F12:F18) -> 767132.76 | G19: =SUM(G12:G18) -> 650000
A20: Муниципальное образование Муринское городское поселение
A21: =A18+1 -> 9 | B21: г. Мурино, ул. Оборонная, д. 12 | C21: =E21+F21+G21 -> 5016630.92 | D21: 2 | E21: =2434852*D21 -> 4869704 | F21: =73463.46*D21 -> 146926.92
A22: =A21+1 -> 10 | B22: г. Мурино, ул. Оборонная, д. 24 | C22: =E22+F22+G22 -> 7524946.38 | D22: 3 | E22: =2434852*D22 -> 7304556 | F22: =73463.46*D22 -> 220390.38
A23: =A22+1 -> 11 | B23: г. Мурино, ул. Оборонная, д. 22 | C23: =E23+F23+G23 -> 2508315.46 | D23: 1 | E23: =2434852*D23 -> 2434852 | F23: =73463.46*D23 -> 73463.46
A24: Итого по муниципальному образованию | C24: =SUM(C21:C23) -> 15049892.76 | D24: =SUM(D21:D23) -> 6 | E24: =SUM(E21:E23) -> 14609112 | F24: =SUM(F21:F23) -> 440780.76
A25: Муниципальное образование Свердловское городское поселение
A26: =A23+1 -> 12 | B26: Пос. им. Свердлова, микрорайон 1, д. 8 | C26: =E26+F26+G26 -> 10033261.84 | D26: 4 | E26: =2434852*D26 -> 9739408 | F26: 293853.84
A27: Итого по муниципальному образованию | C27: =SUM(C26) -> 10033261.84 | D27: =SUM(D26) -> 4 | E27: =SUM(E26) -> 9739408 | F27: =SUM(F26) -> 293853.84
A28: Муниципальное образование Сертолово
A29: =A26+1 -> 13 | B29: Г. Сертолово, микрорайон Сертолово-1, ул. Молодежная, д. 8, корп. 2 | C29: =E29+F29+G29 -> 7775389.38 | D29: 3 | E29: 7554999 | F29: 220390.38
A30: =A29+1 -> 14 | B30: г.Сертолово, микрорайон Сертолово-1, ул. Ветеранов, д. № 11 корп. 2 | C30: =E30+F30+G30 -> 7907242.86 | D30: 3 | E30: 7304556 | F30: 212686.86 | G30: 390000
A31: =A30+1 -> 15 | B31: г.Сертолово, микрорайон Сертолово-1, ул.Центральная, д. 3 | C31: =E31+F31+G31 -> 8157685.86 | D31: 3 | E31: 7554999 | F31: 212686.86 | G31: 390000
A32: =A31+1 -> 16 | B32: г.Сертолово, микрорайон Сертолово-1, ул.Центральная, д. 7, корп.2 | C32: 8157685.86 | D32: 3 | E32: 7554999 | F32: 212686.86 | G32: 390000
A33: Итого по муниципальному образованию | C33: =SUM(C29:C32) -> 31998003.96 | D33: =SUM(D29:D32) -> 12 | E33: 29969553 | F33: 858450.96 | G33: 1170000
A34: Итого по Всеволожскому муниципальному району | C34: =C33+C27+C24+C19 -> 85281663.32 | D34: =D33+D27+D24+D19 -> 33 | E34: =E33+E27+E24+E19 -> 81101445 | F34: =F33+F27+F24+F19 -> 2360218.32 | G34: =G33+G27+G24+G19 -> 1820000
A35: Выборгский район
A36: Муниципальное образование Город Выборг
A37: =A32+1 -> 17 | B37: Г. Выборг, ул. Гагарина, д. 69 | C37: =E37+F37+G37 -> 390000 | G37: 390000
A38: =A37+1 -> 18 | B38: Г. Выборг, ул. Приморская, д. 64 | C38: =E38+F38+G38 -> 4815667.96 | D38: 2 | E38: 4685381.8 | F38: 130286.16
A39: =A38+1 -> 19 | B39: Г. Выборг, просп. Победы, д. 12 | C39: =E39+F39+G39 -> 10033261.84 | D39: 4 | E39: =2434852*D39 -> 9739408 | F39: 293853.84
A40: Итого по муниципальному образованию | C40: =SUM(C37:C39) -> 15238929.8 | D40: =SUM(D37:D39) -> 6 | E40: =SUM(E37:E39) -> 14424789.8 | F40: =SUM(F37:F39) -> 424140 | G40: =SUM(G37:G39) -> 390000
A41: Муниципальное образование Полянское сельское поселение
A42: =A39+1 -> 20 | B42: П/ст Приветнинское, ул. Военных строителей, д. 1 | C42: =E42+F42+G42 -> 2635747.62 | D42: 1 | E42: 2434852 | F42: 70895.62 | G42: 130000
A43: =A42+1 -> 21 | B43: П/ст Приветнинское, ул. Военных строителей, д. 7 | C43: =E43+F43+G43 -> 2635747.62 | D43: 1 | E43: 2434852 | F43: 70895.62 | G43: 130000
A44: =A43+1 -> 22 | B44: П/ст Приветнинское, ул. Военных строителей, д. 9 | C44: =E44+F44+G44 -> 2635747.62 | D44: 1 | E44: 2434852 | F44: 70895.62 | G44: 130000
A45: 23 | B45: пос. Каменка, ул. Гвардейская, д. 75 | C45: =E45+F45+G45 -> 130000 | G45: 130000
A46: 24 | B46: пос. Каменка, ул. Гвардейская, д. 77 | C46: =E46+F46+G46 -> 130000 | G46: 130000
A47: Итого по муниципальному образованию | C47: =SUM(C42:C46) -> 8167242.86 | D47: =SUM(D42:D46) -> 3 | E47: =SUM(E42:E46) -> 7304556 | F47: =SUM(F42:F46) -> 212686.86 | G47: =SUM(G42:G46) -> 650000
A48: Итого по Выборгскому району | C48: =C40+C47 -> 23406172.66 | D48: =D40+D47 -> 9 | E48: =E40+E47 -> 21729345.8 | F48: =F40+F47 -> 636826.86 | G48: =G40+G47 -> 1040000
A49: Гатчинский муниципальный район
A50: Муниципальное образование Город Гатчина
A51: =A46+1 -> 25 | B51: Г. Гатчина, просп. 25 Октября, д. 50 | C51: =E51+F51+G51 -> 13281684.88 | D51: 6 | E51: 12947077 | F51: 334607.88
A52: =A51+1 -> 26 | B52: Г. Гатчина, просп. 25 Октября, д. 59 | C52: 390000 | G52: 390000
A53: 27 | B53: Г. Гатчина, просп. 25 Октября, д. 63 | C53: 6649644.94 | D53: 3 | E53: 6482341 | F53: 167303.94
A54: 28 | B54: Г. Гатчина, ул. Авиатриссы Зверевой, д. 11 | C54: 4736471.6 | D54: 2 | E54: 4614400.6 | F54: 122071
A55: 29 | B55: Г. Гатчина, ул. Красных Военлётов, д. 9 | C55: 10012095.24 | D55: 4 | E55: =2072192.4+1954905.6+2017970.4+3673173 -> 9718241.4 | F55: 293853.84
A56: 30 | B56: Г. Гатчина, ул. Рощинская, д. 13, кор. 1 | C56: 2406821.9 | D56: 1 | E56: 2345786.4 | F56: 61035.5
A57: 31 | B57: Г. Гатчина, ул. Рощинская, д. 11, кор. 1 | C57: 130000 | G57: 130000
A58: 32 | B58: Г. Гатчина, ул. Рощинская, д. 13А | C58: 260000 | G58: 260000
A59: 33 | B59: Г. Гатчина, ул. Рощинская, д. 3А | C59: 260000 | G59: 260000
A60: 34 | B60: Г. Гатчина, ул. Чехова, д. 14 | C60: 4984582.2 | D60: 2 | E60: 4862511.2 | F60: 122071
A61: 35 | B61: Г. Гатчина, ул. Хохлова, д. 2 | C61: 7524946.38 | D61: 3 | E61: =2434852*D61 -> 7304556 | F61: 220390.38
A62: Итого по муниципальному образованию | C62: =SUM(C51:C61) -> 50636247.14 | D62: =SUM(D51:D61) -> 21 | E62: =SUM(E51:E61) -> 48274913.6 | F62: =SUM(F51:F61) -> 1321333.54 | G62: =SUM(G51:G61) -> 1040000
A63: Итого по Гатчинскому муниципальному району | C63: =C62 -> 50636247.14 | D63: =D62 -> 21 | E63: =E62 -> 48274913.6 | F63: =F62 -> 1321333.54 | G63: =G62 -> 1040000
A64: Кингисеппский муниципальный район
A65: Муниципальное образование Кингисеппское городское поселение
A66: =A61+1 -> 36 | B66: Г. Кингисепп, просп. Карла Маркса, д. 51 | C66: =E66+F66+G66 -> 130000 | G66: 130000
A67: =A66+1 -> 37 | B67: Г. Кингисепп, б-р Большой , д. 11 | C67: 520000 | G67: 520000
A68: 38 | B68: Г. Кингисепп, б-р Большой, д. 15 | C68: 260000 | G68: 260000
A69: 39 | B69: Г. Кингисепп, б-р Большой, д. 17 | C69: 780000 | G69: 780000
A70: 40 | B70: Г. Кингисепп, ул. Воровского, д. 31в | C70: 260000 | G70: 260000
A71: 41 | B71: Г. Кингисепп, ш. Крикковское, д. 10а | C71: 260000 | G71: 260000
A72: 42 | B72: Г. Кингисепп, ш. Крикковское, д. 12 | C72: 910000 | G72: 910000
A73: 43 | B73: Г. Кингисепп, ш. Крикковское, д. 14 | C73: 910000 | G73: 910000
A74: 44 | B74: Г. Кингисепп, ш. Крикковское, д. 35 | C74: 650000 | G74: 650000
A75: 45 | B75: Г. Кингисепп, ш. Крикковское, д. 39 | C75: 390000 | G75: 390000
A76: 46 | B76: Г. Кингисепп, ш. Крикковское, д. 6 | C76: 780000 | G76: 780000
A77: Итого по муниципальному образованию | C77: =SUM(C66:C76) -> 5850000 | G77: =SUM(G66:G76) -> 5850000
A78: Итого по Кингисеппскому муниципальному району | C78: =C77 -> 5850000 | G78: =G77 -> 5850000
A79: Киришский муниципальный район
A80: Муниципальное образование Киришское городское поселение
A81: =A76+1 -> 47 | B81: Г. Кириши, бул. Плавницкий, д. 36 | C81: =E81+F81+G81 -> 130000 | G81: 130000
A82: =A81+1 -> 48 | B82: Г. Кириши, пер. Березовый, д. 10 | C82: 2508315.46 | D82: 1 | E82: =2434852*D82 -> 2434852 | F82: =D82*73463.46 -> 73463.46
A83: 49 | B83: Г. Кириши, просп. Ленина, д. 40 | C83: 130000 | G83: 130000
A84: 50 | B84: Г. Кириши, просп. Ленина, д. 9 | C84: 130000 | G84: 130000
A85: 51 | B85: Г. Кириши, ул. Строителей, д. 2 | C85: 130000 | G85: 130000
A86: 52 | B86: Г. Кириши, ул. Строителей, д. 26 | C86: 130000 | G86: 130000
A87: Итого по муниципальному образованию | C87: =SUM(C81:C86) -> 3158315.46 | D87: =SUM(D81:D86) -> 1 | E87: =SUM(E81:E86) -> 2434852 | F87: =SUM(F81:F86) -> 73463.46 | G87: =SUM(G81:G86) -> 650000
A88: Итого по Киришскому муниципальному району | C88: =C87 -> 3158315.46 | D88: =D87 -> 1 | E88: =E87 -> 2434852 | F88: =F87 -> 73463.46 | G88: =G87 -> 650000
A89: Кировский муниципальный район
A90: Муниципальное образование Кировское городское поселение
A91: =A86+1 -> 53 | B91: Г. Кировск, ул. Молодежная, д. 3 | C91: =E91+F91+G91 -> 2508315.46 | D91: 1 | E91: =2434852*D91 -> 2434852 | F91: =D91*73463.46 -> 73463.46
A92: =A91+1 -> 54 | B92: Г. Кировск, ул. Молодежная, д. 5 | C92: =E92+F92+G92 -> 2508315.46 | D92: 1 | E92: =2434852*D92 -> 2434852 | F92: =D92*73463.46 -> 73463.46
A93: =A92+1 -> 55 | B93: Г. Кировск, ул. Ладожская, д. 20 | C93: =E93+F93+G93 -> 21085980.96 | D93: 8 | E93: 19478816 | F93: 567164.96 | G93: 1040000
A94: Итого по муниципальному образованию | C94: =SUM(C91:C93) -> 26102611.88 | D94: =SUM(D91:D93) -> 10 | E94: =SUM(E91:E93) -> 24348520 | F94: =SUM(F91:F93) -> 714091.88 | G94: =SUM(G91:G93) -> 1040000
A95: Муниципальное образование Отрадненское городское поселение
A96: =A93+1 -> 56 | B96: Г. Отрадное, ул. Железнодорожная, д. 13 | C96: =E96+F96+G96 -> 5016630.92 | D96: 2 | E96: =2434852*D96 -> 4869704 | F96: =D96*73463.46 -> 146926.92
A97: =A96+1 -> 57 | B97: Г. Отрадное, ул. Зарубина, д. 15 | C97: =E97+F97+G97 -> 2508315.46 | D97: 1 | E97: =2434852*D97 -> 2434852 | F97: =D97*73463.46 -> 73463.46
A98: =A97+1 -> 58 | B98: Г. Отрадное, ул. Лесная, д. 10 | C98: =E98+F98+G98 -> 2508315.46 | D98: 1 | E98: =2434852*D98 -> 2434852 | F98: =D98*73463.46 -> 73463.46
A99: =A98+1 -> 59 | B99: Г. Отрадное, ул. Центральная,д.17 | C99: =E99+F99+G99 -> 10033261.84 | D99: 4 | E99: =2434852*D99 -> 9739408 | F99: =D99*73463.46 -> 293853.84
A100: =A99+1 -> 60 | B100: Г. Отрадное, ул. Щурова, д.4 | C100: =E100+F100+G100 -> 5016630.92 | D100: 2 | E100: =2434852*D100 -> 4869704 | F100: =D100*73463.46 -> 146926.92
A101: Итого по муниципальному образованию | C101: =SUM(C96:C100) -> 25083154.6 | D101: =SUM(D96:D100) -> 10 | E101: =SUM(E96:E100) -> 24348520 | F101: =SUM(F96:F100) -> 734634.6
A102: Итого по Кировскому муниципальному району | C102: =+C101+C94 -> 51185766.48 | D102: =+D101+D94 -> 20 | E102: =+E101+E94 -> 48697040 | F102: =+F101+F94 -> 1448726.48 | G102: =+G101+G94 -> 1040000
A103: Ломоносовский муниципальный район
A104: Муниципальное образование Аннинское сельское поселение
A105: =A100+1 -> 61 | B105: Г.п. Новоселье, д. 7 | C105: =E105+F105+G105 -> 520000 | G105: =4*130000 -> 520000
A106: Итого по муниципальному образованию | C106: =SUM(C105) -> 520000 | G106: =SUM(G105) -> 520000
A107: Итого по Ломоносовскому муниципальному району | C107: =C106 -> 520000 | G107: =G106 -> 520000
A108: Лужский муниципальный район
A109: Муниципальное образование Лужское городское поселение
A110: =A105+1 -> 62 | B110: Г. Луга, просп. Урицкого, д. 101 | C110: =E110+F110+G110 -> 2508315.46 | D110: 1 | E110: =2434852*D110 -> 2434852 | F110: =D110*73463.46 -> 73463.46
A111: =A110+1 -> 63 | B111: Г. Луга, просп. Урицкого, д. 99 | C111: =E111+F111+G111 -> 2508315.46 | D111: 1 | E111: =2434852*D111 -> 2434852 | F111: =D111*73463.46 -> 73463.46
A112: Итого по муниципальному образованию | C112: =SUM(C110:C111) -> 5016630.92 | D112: =SUM(D110:D111) -> 2 | E112: =SUM(E110:E111) -> 4869704 | F112: =SUM(F110:F111) -> 146926.92
A113: Итого по Лужскому муниципальному району | C113: =SUM(C112) -> 5016630.92 | D113: =SUM(D112) -> 2 | E113: =SUM(E112) -> 4869704 | F113: =SUM(F112) -> 146926.92
A114: Сосновоборский городской округ
A115: Муниципальное образование Сосновоборский городской округ
A116: =A111+1 -> 64 | B116: Г. Сосновый Бор, ул. Ленинградская, д. 38 | C116: =E116+F116+G117 -> 130000 | G116: 130000
A117: =A116+1 -> 65 | B117: Г. Сосновый Бор, ул. Парковая, д. 70 | C117: =E117+F117+G117 -> 130000 | G117: 130000
A118: Итого по муниципальному образованию | C118: =SUM(C116:C117) -> 260000 | G118: =SUM(G116:G117) -> 260000
A119: Тихвинский муниципальный район
A120: Муниципальное образование Тихвинское городское поселение
A121: =A117+1 -> 66 | B121: Г. Тихвин, ул. Машиностроителей, д.46 | C121: =E121+F121+G121 -> 12541577.3 | D121: 5 | E121: =2434852*D121 -> 12174260 | F121: =D121*73463.46 -> 367317.3
A122: Итого по муниципальному образованию | C122: =SUM(C121) -> 12541577.3 | D122: =SUM(D121) -> 5 | E122: =SUM(E121) -> 12174260 | F122: =SUM(F121) -> 367317.3
A123: Итого по Тихвинскому муниципальному району | C123: =C122 -> 12541577.3 | D123: =D122 -> 5 | E123: =E122 -> 12174260 | F123: =F122 -> 367317.3
A124: Тосненский район
A125: Муниципальное образование Тосненское городское поселение
A126: =A121+1 -> 67 | B126: Г. Тосно, ул. М. Горького, д. 8а | C126: =E126+F126+G126 -> 5016630.92 | D126: 2 | E126: =2434852*D126 -> 4869704 | F126: =D126*73463.46 -> 146926.92
A127: =A126+1 -> 68 | B127: Г. Тосно, пр. Ленина, д. 19 | C127: =E127+F127+G127 -> 10033261.84 | D127: 4 | E127: =2434852*D127 -> 9739408 | F127: =D127*73463.46 -> 293853.84
A128: Итого по муниципальному образованию | C128: =SUM(C126:C127) -> 15049892.76 | D128: =SUM(D126:D127) -> 6 | E128: =SUM(E126:E127) -> 14609112 | F128: =SUM(F126:F127) -> 440780.76
A129: Итого по Тосненскому району | C129: =C128 -> 15049892.76 | D129: =D128 -> 6 | E129: =E128 -> 14609112 | F129: =F128 -> 440780.76
A130: ИТОГО по Ленинградской области | C130: =C34+C48+C63+C113+C102+C9+C78+C88+C123+C118+C129+C107 -> 253036266 | D130: =D34+D48+D63+D113+D102+D9+D78+D88+D123+D118+D129+D107 -> 97 | E130: 233890672.4 | F130: 6795593.64 | G130: 12350000
A131: Осуществление строительного контроля | C131: =(C130-F130-G130)*0.0214 -> 5005260.389
A132: Итого по Ленинградской области со строительным контролем | C132: =C130+C131 -> 258041526.4
G428: =SUM(G404:G427) -> 0
G445: =SUM(G430:G444) -> 0
G452: =SUM(G447:G451) -> 0
G455: =SUM(G454:G454) -> 0
G463: =SUM(G457:G462) -> 0
G471: =SUM(G465:G470) -> 0
G472: =#REF!+#REF!+#REF!+#REF!+#REF!+F472+#REF!+#REF!+#REF!+#REF!+#REF!+#REF!+#REF!+#REF! -> 
G473: =#REF!+#REF!+#REF!+#REF!+#REF!+F473+#REF!+#REF!+#REF!+#REF!+#REF!+#REF!+#REF!+#REF! -> 
G474: =#REF!+#REF!+#REF!+#REF!+#REF!+F474+#REF!+#REF!+#REF!+#REF!+#REF!+#REF!+#REF!+#REF! -> 
G475: =#REF!+#REF!+#REF!+#REF!+#REF!+F475+#REF!+#REF!+#REF!+#REF!+#REF!+#REF!+#REF!+#REF! -> 
G476: =#REF!+#REF!+#REF!+#REF!+#REF!+F476+#REF!+#REF!+#REF!+#REF!+#REF!+#REF!+#REF!+#REF! -> 
G502: =SUM(G478:G501) -> 0
G503: =SUM(G502+G471+G463+G455+G452+G445+G428) -> 0
G539: =SUM(G506:G538) -> 0
G540: =G539 -> 0
G549: =SUM(G543:G546) -> 0
G552: =SUM(G551:G551) -> 0
G557: =SUM(G554:G556) -> 0
G563: =SUM(G559:G562) -> 0
G569: =SUM(G565:G568) -> 0
G573: =SUM(G571:G572) -> 0
G579: =SUM(G575:G578) -> 0
G580: =G557+G549+G552+G579+G573+G563+G569 -> 0
G585: =SUM(G583:G584) -> 0
G608: =SUM(G599:G607) -> 0
G612: =SUM(G610:G611) -> 0
G615: =SUM(G614:G614) -> 0
G624: =SUM(G617:G623) -> 0
G632: =SUM(G626:G631) -> 0
G635: =SUM(G634:G634) -> 0
G638: =SUM(G637) -> 0
G645: =G585+G608+G612+G615+G624+G632+G635+G638+G644 -> 0
G656: =SUM(G648:G655) -> 0
G657: =G656 -> 0
G665: =SUM(G660:G664) -> 0
G671: =SUM(G667:G670) -> 0
G676: =SUM(G673:G675) -> 0
G682: =SUM(G678:G681) -> 0
G686: =SUM(G684:G685) -> 0
G694: =G692+G693 -> 0
G695: =G665+G671+G676+G682+G686 -> 0
G699: =SUM(G698:G698) -> 0
G702: =SUM(G701) -> 0
G740: =SUM(G704:G739) -> 0
G741: =G740+G702+G699 -> 0
G862: =SUM(G743:G861) -> 0
G974: =SUM(G870:G973) -> 0
G994: =SUM(G976:G993) -> 0
G995: =G974+G994 -> 0
G999: =SUM(G998:G998) -> 0
G1007: =SUM(G1001:G1006) -> 0
G1010: =SUM(G1009:G1009) -> 0
G1030: =SUM(G1012:G1029) -> 0
G1033: =SUM(G1032:G1032) -> 0
G1036: =SUM(G1035) -> 0
G1037: =G1007+G1010+G1033+G1030+G999+G1036 -> 0

Sheet 2022 Раздел 4
A1: Раздел IV. Перечень многоквартирных домов, в которых будет проводиться капитальный ремонт лифтового оборудования в 2022 году, за счет средств собственников, формирующих фонд капитального ремонта на счетах регионального оператора
A2: № п\п | B2: Адрес МКД | C2: Стоимость капитального ремонта ВСЕГО | D2: Ремонт или замена лифтового оборудования | F2: ТО | G2: Проектные работы
C3: руб. | D3: ед. | E3: руб | F3: руб. | G3: руб.
A4: 1 | B4: 2 | C4: 3 | D4: 4 | E4: 5 | F4: 6 | G4: 7
A6: Волховский муниципальный район
A7: Муниципальное образование Город Волхов
A8: 1 | B8: Г. Волхов, просп. Волховский, д. 57 | C8: =E8+F8+G8 -> 2605709.46 | D8: 1 | E8: =2532246*D8 -> 2532246 | F8: =73463.46*D8 -> 73463.46
A9: Итого по муниципальному образованию | C9: =SUM(C8:C8) -> 2605709.46 | D9: =SUM(D8:D8) -> 1 | E9: =2532246*D9 -> 2532246 | F9: =73463.46*D9 -> 73463.46 | G9: =SUM(G8:G8) -> 0
A10: Итого по Волховскому муниципальному району | C10: =C9 -> 2605709.46 | D10: =D9 -> 1 | E10: =E9 -> 2532246 | F10: =F9 -> 73463.46 | G10: =G9 -> 0
A11: Всеволожский муниципальный район
A12: Муниципальное образование Город Всеволожск
A13: =A8+1 -> 2 | B13: Г. Всеволожск, ул. Василеозерская, д. 7 | C13: =E13+F13+G13 -> 5211418.92 | D13: 2 | E13: =2532246*D13 -> 5064492 | F13: =73463.46*D13 -> 146926.92
A14: =A13+1 -> 3 | B14: Г. Всеволожск, ул. Ленинградская, д. 30, корп. 1 | C14: =E14+F14+G14 -> 2605709.46 | D14: 1 | E14: =2532246*D14 -> 2532246 | F14: =73463.46*D14 -> 73463.46
A15: =A14+1 -> 4 | B15: Г. Всеволожск, ул. Вокка, д. 3 | C15: =E15+F15+G15 -> 5211418.92 | D15: 2 | E15: =2532246*D15 -> 5064492 | F15: =73463.46*D15 -> 146926.92
A16: Итого по муниципальному образованию | C16: =SUM(C13:C15) -> 13028547.3 | D16: =SUM(D13:D15) -> 5 | E16: =SUM(E13:E15) -> 12661230 | F16: =SUM(F13:F15) -> 367317.3 | G16: =SUM(G13:G15) -> 0
A17: Муниципальное образование Сертолово
A18: =A15+1 -> 5 | B18: г.Сертолово, микрорайон Сертолово-1, ул.Ветеранов,д.11,корп.1 | C18: =E18+F18+G18 -> 7907242.86 | D18: 3 | E18: 7304556 | F18: 212686.86 | G18: =130000*D18 -> 390000
A19: Итого по муниципальному образованию | C19: =SUM(C18) -> 7907242.86 | D19: =SUM(D18) -> 3 | E19: =SUM(E18) -> 7304556 | F19: =SUM(F18) -> 212686.86 | G19: =SUM(G18) -> 390000
A20: Итого по Всеволожскому муниципальному району | C20: =C16+C19 -> 20935790.16 | D20: =D16+D19 -> 8 | E20: =E16+E19 -> 19965786 | F20: =F16+F19 -> 580004.16 | G20: 390000
A21: Выборгский район
A22: Муниципальное образование Город Выборг
A23: =A18+1 -> 6 | B23: Г. Выборг, ул. Гагарина, д. 69 | C23: =E23+F23+G23 -> 5211418.92 | D23: 2 | E23: =2532246*D23 -> 5064492 | F23: =73463.46*D23 -> 146926.92
A24: Итого по муниципальному образованию | C24: =SUM(C23:C23) -> 5211418.92 | D24: =SUM(D23:D23) -> 2 | E24: =SUM(E23:E23) -> 5064492 | F24: =SUM(F23:F23) -> 146926.92 | G24: =SUM(G23:G23) -> 0
A25: Муниципальное образование Полянское сельское поселение
A26: =A23+1 -> 7 | B26: пос. Каменка, ул. Гвардейская, д. 75 | C26: =E26+F26+G26 -> 2606190.13 | D26: 1 | E26: 2532246 | F26: 73944.13
A27: =A26+1 -> 8 | B27: пос. Каменка, ул. Гвардейская, д. 77 | C27: =E27+F27+G27 -> 2606190.13 | D27: 1 | E27: 2532246 | F27: 73944.13
A28: Итого по муниципальному образованию | C28: =SUM(C26:C27) -> 5212380.26 | D28: =SUM(D26:D27) -> 2 | E28: =SUM(E26:E27) -> 5064492 | F28: =SUM(F26:F27) -> 147888.26 | G28: =SUM(G26:G27) -> 0
A29: Итого по Выборгскому району | C29: =C24+C28 -> 10423799.18 | D29: =D24+D28 -> 4 | E29: =E24+E28 -> 10128984 | F29: =F24+F28 -> 294815.18 | G29: =G24+G28 -> 0
A30: Гатчинский муниципальный район
A31: Муниципальное образование Город Гатчина
A32: =A27+1 -> 9 | B32: Г. Гатчина, просп. 25 Октября, д. 59 | C32: =E32+F32+G32 -> 7817128.38 | D32: 3 | E32: =2532246*D32 -> 7596738 | F32: 220390.38
A33: =A32+1 -> 10 | B33: Г. Гатчина, просп. 25 Октября, д. 46 | C33: =E33+F33+G33 -> 14776244.76 | D33: 6 | E33: 13630698 | F33: 365546.76 | G33: =130000*D33 -> 780000
A34: =A33+1 -> 11 | B34: Г. Гатчина, ул. Рощинская, д. 11, кор. 1 | C34: =E34+F34+G34 -> 2605709.46 | D34: 1 | E34: =2532246*D34 -> 2532246 | F34: 73463.46
A35: 12 | B35: Г. Гатчина, ул. Рощинская, д. 13А | C35: =E35+F35+G35 -> 5211418.92 | D35: 2 | E35: =2532246*D35 -> 5064492 | F35: 146926.92
A36: 13 | B36: Г. Гатчина, ул. Рощинская, д. 3А | C36: =E36+F36+G36 -> 5211418.92 | D36: 2 | E36: =2532246*D36 -> 5064492 | F36: 146926.92
A37: Итого по муниципальному образованию | C37: =SUM(C32:C36) -> 35621920.44 | D37: =SUM(D32:D36) -> 14 | E37: =SUM(E32:E36) -> 33888666 | F37: =SUM(F32:F36) -> 953254.44 | G37: =SUM(G32:G36) -> 780000
A38: Итого по Гатчинскому муниципальному району | C38: =C37 -> 35621920.44 | D38: =D37 -> 14 | E38: =E37 -> 33888666 | F38: =F37 -> 953254.44 | G38: =G37 -> 780000
A39: Кингисеппский муниципальный район
A40: Муниципальное образование Кингисеппское городское поселение
A41: =A36+1 -> 14 | B41: Г. Кингисепп, просп. Карла Маркса, д. 51 | C41: =E41+F41+G41 -> 2605709.46 | D41: 1 | E41: =2532246*D41 -> 2532246 | F41: =73463.46*D41 -> 73463.46
A42: =A41+1 -> 15 | B42: Г. Кингисепп, б-р Большой , д. 11 | C42: 10422837.84 | D42: 4 | E42: 10128984 | F42: =73463.46*D42 -> 293853.84
A43: 16 | B43: Г. Кингисепп, б-р Большой, д. 15 | C43: 5211418.92 | D43: 2 | E43: 5064492 | F43: =73463.46*D43 -> 146926.92
A44: 17 | B44: Г. Кингисепп, б-р Большой, д. 17 | C44: 15634256.76 | D44: 6 | E44: 15193476 | F44: =73463.46*D44 -> 440780.76
A45: 18 | B45: Г. Кингисепп, ул. Воровского, д. 31в | C45: 5211418.92 | D45: 2 | E45: 5064492 | F45: 146926.92
A46: 19 | B46: Г. Кингисепп, ш. Крикковское, д. 10а | C46: 5211418.92 | D46: 2 | E46: 5064492 | F46: 146926.92
A47: 20 | B47: Г. Кингисепп, ш. Крикковское, д. 12 | C47: 18239966.22 | D47: 7 | E47: 17725722 | F47: 514244.22
A48: 21 | B48: Г. Кингисепп, ш. Крикковское, д. 14 | C48: 18239966.22 | D48: 7 | E48: 17725722 | F48: 514244.22
A49: 22 | B49: Г. Кингисепп, ш. Крикковское, д. 35 | C49: 13028547.3 | D49: 5 | E49: 12661230 | F49: 367317.3
A50: 23 | B50: Г. Кингисепп, ш. Крикковское, д. 39 | C50: 7817128.38 | D50: 3 | E50: 7596738 | F50: 220390.38
A51: 24 | B51: Г. Кингисепп, ш. Крикковское, д. 6 | C51: 15634256.76 | D51: 6 | E51: 15193476 | F51: 440780.76
A52: Итого по муниципальному образованию | C52: =SUM(C41:C51) -> 117256925.7 | D52: =SUM(D41:D51) -> 45 | E52: =SUM(E41:E51) -> 113951070 | F52: =SUM(F41:F51) -> 3305855.7 | G52: =SUM(G41:G51) -> 0
A53: Итого по Кингисеппскому муниципальному району | C53: =C52 -> 117256925.7 | D53: =D52 -> 45 | E53: =E52 -> 113951070 | F53: =F52 -> 3305855.7 | G53: =G52 -> 0
A54: Киришский муниципальный район
A55: Муниципальное образование Киришское городское поселение
A56: =A51+1 -> 25 | B56: Г. Кириши, бул. Плавницкий, д. 36 | C56: =E56+F56+G56 -> 2605709.46 | D56: 1 | E56: =2532246*D56 -> 2532246 | F56: =73463.46*D56 -> 73463.46
A57: =A56+1 -> 26 | B57: Г. Кириши, просп. Ленина, д. 40 | C57: 2605709.46 | D57: 1 | E57: =2532246*D57 -> 2532246 | F57: =73463.46*D57 -> 73463.46
A58: =A57+1 -> 27 | B58: Г. Кириши, просп. Ленина, д. 9 | C58: 2605709.46 | D58: 1 | E58: =2532246*D58 -> 2532246 | F58: =73463.46*D58 -> 73463.46
A59: =A58+1 -> 28 | B59: Г. Кириши, ул. Строителей, д. 2 | C59: 2605709.46 | D59: 1 | E59: =2532246*D59 -> 2532246 | F59: =73463.46*D59 -> 73463.46
A60: =A59+1 -> 29 | B60: Г. Кириши, ул. Строителей, д. 26 | C60: 2605709.46 | D60: 1 | E60: =2532246*D60 -> 2532246 | F60: =73463.46*D60 -> 73463.46
A61: =A60+1 -> 30 | B61: Г. Кириши, ул. Строителей, д. 30А | C61: 2736190.13 | D61: 1 | E61: 2532246 | F61: 73944.13 | G61: 130000
A62: Итого по муниципальному образованию | C62: =SUM(C56:C61) -> 15764737.43 | D62: =SUM(D56:D61) -> 6 | E62: =SUM(E56:E61) -> 15193476 | F62: =SUM(F56:F61) -> 441261.43 | G62: =SUM(G56:G61) -> 130000
A63: Итого по Киришскому муниципальному району | C63: =C62 -> 15764737.43 | D63: =D62 -> 6 | E63: =E62 -> 15193476 | F63: =F62 -> 441261.43 | G63: =G62 -> 130000
A64: Ломоносовский муниципальный район
A65: Муниципальное образование Аннинское сельское поселение
A66: =A61+1 -> 31 | B66: Г.п. Новоселье, д. 7 | C66: =E66+F66+G66 -> 10422837.84 | D66: 4 | E66: =2532246*D66 -> 10128984 | F66: =73463.46*D66 -> 293853.84
A67: Итого по муниципальному образованию | C67: =SUM(C66) -> 10422837.84 | D67: =SUM(D66) -> 4 | E67: =SUM(E66) -> 10128984 | F67: =SUM(F66) -> 293853.84 | G67: =SUM(G66) -> 0
A68: Итого по Ломоносовскому муниципальному району | C68: =C67 -> 10422837.84 | D68: =D67 -> 4 | E68: =E67 -> 10128984 | F68: =F67 -> 293853.84 | G68: =G67 -> 0
A69: Лужский муниципальный район
A70: Муниципальное образование Лужское городское поселение
A71: =A66+1 -> 32 | B71: Г. Луга, ул. Миккели, д. 1, кор. 2 | C71: =E71+F71+G71 -> 2736190.13 | D71: 1 | E71: 2532246 | F71: 73944.13 | G71: 130000
A72: Итого по муниципальному образованию | C72: =C71 -> 2736190.13 | D72: =D71 -> 1 | E72: 2532246 | F72: 73944.13 | G72: 130000
A73: Сосновоборский городской округ
A74: Муниципальное образование Сосновоборский городской округ
A75: =A71+1 -> 33 | B75: Г. Сосновый Бор, ул. Ленинградская, д. 38 | C75: =E75+F75+G75 -> 2605709.46 | D75: 1 | E75: =2532246*D75 -> 2532246 | F75: =73463.46*D75 -> 73463.46
A76: =A75+1 -> 34 | B76: Г. Сосновый Бор, ул. Парковая, д. 70 | C76: 2605709.46 | D76: 1 | E76: =2532246*D76 -> 2532246 | F76: =73463.46*D76 -> 73463.46
A77: Итого по муниципальному образованию | C77: =SUM(C75:C76) -> 5211418.92 | D77: =SUM(D75:D76) -> 2 | E77: =SUM(E75:E76) -> 5064492 | F77: =SUM(F75:F76) -> 146926.92 | G77: =SUM(G75:G76) -> 0
A78: ИТОГО по Ленинградской области | C78: =C10+C20+C29+C38+C53+C63+C68+C72+C77 -> 220979329.3 | D78: =D10+D20+D29+D38+D53+D63+D68+D72+D77 -> 85 | E78: 213385950 | F78: 6163379.26 | G78: 1430000
A79: Осуществление строительного контроля | C79: =(C78-F78-G78)*0.0214 -> 4566459.33
A80: Итого по Ленинградской области со строительным контролем | C80: =C78+C79 -> 225545788.6
G154: =SUM(G141:G153) -> 0
G177: =SUM(G159:G176) -> 0
G188: =SUM(G182:G187) -> 0
G196: =SUM(G190:G195) -> 0
G202: =SUM(G198:G200) -> 0
G203: =G154+G177+G188+G202+G196+G180 -> 0
G210: =SUM(G206:G209) -> 0
G274: =SUM(G215:G273) -> 0
G281: =SUM(G280) -> 0
G288: =G210+G274+G281 -> 0
G303: =SUM(G291:G302) -> 0
G308: =SUM(G305:G307) -> 0
G309: =G303+G308 -> 0
G339: =SUM(G312:G338) -> 0
G344: =SUM(G341:G343) -> 0
G348: =SUM(G346:G347) -> 0
G349: =G339+G348+G344 -> 0
G376: =SUM(G352:G375) -> 0
G393: =SUM(G378:G392) -> 0
G400: =SUM(G395:G399) -> 0
G403: =SUM(G402:G402) -> 0
G411: =SUM(G405:G410) -> 0
G419: =SUM(G413:G418) -> 0
G420: =#REF!+#REF!+#REF!+#REF!+#REF!+F420+#REF!+#REF!+#REF!+#REF!+#REF!+#REF!+#REF!+#REF! -> 
G421: =#REF!+#REF!+#REF!+#REF!+#REF!+F421+#REF!+#REF!+#REF!+#REF!+#REF!+#REF!+#REF!+#REF! -> 
G422: =#REF!+#REF!+#REF!+#REF!+#REF!+F422+#REF!+#REF!+#REF!+#REF!+#REF!+#REF!+#REF!+#REF! -> 
G423: =#REF!+#REF!+#REF!+#REF!+#REF!+F423+#REF!+#REF!+#REF!+#REF!+#REF!+#REF!+#REF!+#REF! -> 
G424: =#REF!+#REF!+#REF!+#REF!+#REF!+F424+#REF!+#REF!+#REF!+#REF!+#REF!+#REF!+#REF!+#REF! -> 
G450: =SUM(G426:G449) -> 0
G451: =SUM(G450+G419+G411+G403+G400+G393+G376) -> 0
G487: =SUM(G454:G486) -> 0
G488: =G487 -> 0
G497: =SUM(G491:G494) -> 0
G500: =SUM(G499:G499) -> 0
G505: =SUM(G502:G504) -> 0
G511: =SUM(G507:G510) -> 0
G517: =SUM(G513:G516) -> 0
G521: =SUM(G519:G520) -> 0
G527: =SUM(G523:G526) -> 0
G528: =G505+G497+G500+G527+G521+G511+G517 -> 0
G533: =SUM(G531:G532) -> 0
G556: =SUM(G547:G555) -> 0
G560: =SUM(G558:G559) -> 0
G563: =SUM(G562:G562) -> 0
G572: =SUM(G565:G571) -> 0
G580: =SUM(G574:G579) -> 0
G583: =SUM(G582:G582) -> 0
G586: =SUM(G585) -> 0
G593: =G533+G556+G560+G563+G572+G580+G583+G586+G592 -> 0
G604: =SUM(G596:G603) -> 0
G605: =G604 -> 0
G613: =SUM(G608:G612) -> 0
G619: =SUM(G615:G618) -> 0
G624: =SUM(G621:G623) -> 0
G630: =SUM(G626:G629) -> 0
G634: =SUM(G632:G633) -> 0
G642: =G640+G641 -> 0
G643: =G613+G619+G624+G630+G634 -> 0
G647: =SUM(G646:G646) -> 0
G650: =SUM(G649) -> 0
G688: =SUM(G652:G687) -> 0
G689: =G688+G650+G647 -> 0
G810: =SUM(G691:G809) -> 0
G922: =SUM(G818:G921) -> 0
G942: =SUM(G924:G941) -> 0
G943: =G922+G942 -> 0
G947: =SUM(G946:G946) -> 0
G955: =SUM(G949:G954) -> 0
G958: =SUM(G957:G957) -> 0
G978: =SUM(G960:G977) -> 0
G981: =SUM(G980:G980) -> 0
G984: =SUM(G983) -> 0
G985: =G955+G958+G981+G978+G947+G984 -> 0
